Workbook

Sheet Male
A1: Improvement rates for various scales, Male | L1: 21 | M1: 4 | N1: 7 | O1: 30 | P1: 40 | Q1: 50 | R1: 60 | S1: 70 | T1: 80 | U1: 90 | W1: 21 | X1: 4 | Y1: 4 | Z1: 60 | AA1: 70 | AB1: 80 | AC1: 90
A2: Age 30 | B2: MI2017 | C2: MIH6U4 | D2: MIO6U4 | E2: MIO8U6 | F2: Age 40 | G2: MI2017 | H2: MIH6U4 | I2: MIO6U4 | J2: MIO8U6 | K2: Age 50 | L2: MI2017 | M2: MIH6U4 | N2: MIO6U4 | O2: MIO8U6 | P2: Age 60 | Q2: MI2017 | R2: MIH6U4 | S2: MIO6U4 | T2: MIO8U6 | U2: Age 70 | V2: MI2017 | W2: MIH6U4 | X2: MIO6U4 | Y2: MIO8U6 | Z2: Age 80 | AA2: MI2017 | AB2: MIH6U4 | AC2: MIO6U4 | AD2: MIO8U6 | AE2: Age 90 | AF2: MI2017 | AG2: MIH6U4 | AH2: MIO6U4 | AI2: MIO8U6
A3: 2005 | B3: 0.02345105937 | C3: 0.01906425299 | D3: 0.01906145202 | E3: 0.01691854144 | F3: 2005 | G3: 0.02144230806 | H3: 0.01858461213 | I3: 0.0184938377 | J3: 0.01713354333 | K3: 2005 | L3: 0.0172510777 | M3: 0.01616032301 | N3: 0.01600989044 | O3: 0.01574969525 | P3: 2005 | Q3: 0.02323211281 | R3: 0.02293060266 | S3: 0.02278009501 | T3: 0.02283131985 | U3: 2005 | V3: 0.03009703581 | W3: 0.02993245513 | X3: 0.03045962312 | Y3: 0.03061078747 | Z3: 2005 | AA3: 0.02960048039 | AB3: 0.02804961854 | AC3: 0.02653719785 | AD3: 0.02674203209 | AE3: 2005 | AF3: 0.01377210278 | AG3: 0.01423462563 | AH3: 0.01206996425 | AI3: 0.01221142458
A4: 2006 | B4: 0.0232362279 | C4: 0.01795023066 | D4: 0.01797192437 | E4: 0.01532238555 | F4: 2006 | G4: 0.02155236775 | H4: 0.0180777071 | I4: 0.01797072941 | J4: 0.01622449406 | K4: 2006 | L4: 0.01771865774 | M4: 0.01628370368 | N4: 0.01611623084 | O4: 0.01568627981 | P4: 2006 | Q4: 0.02269800093 | R4: 0.02201045114 | S4: 0.02181511473 | T4: 0.02177447345 | U4: 2006 | V4: 0.02938777422 | W4: 0.02922887752 | X4: 0.02950276665 | Y4: 0.0296180025 | Z4: 2006 | AA4: 0.02920017315 | AB4: 0.02815640606 | AC4: 0.02651574885 | AD4: 0.0267256773 | AE4: 2006 | AF4: 0.01416790424 | AG4: 0.01505676719 | AH4: 0.01276328845 | AI4: 0.01286293558
A5: 2007 | B5: 0.02305093719 | C5: 0.01678600012 | D5: 0.01684210584 | E5: 0.01362684824 | F5: 2007 | G5: 0.0217092952 | H5: 0.01757137056 | I5: 0.01745022513 | J5: 0.0152656752 | K5: 2007 | L5: 0.01832224872 | M5: 0.01650488957 | N5: 0.01631810338 | O5: 0.01568423275 | P5: 2007 | Q5: 0.02219718727 | R5: 0.02100730764 | S5: 0.02077228265 | T5: 0.02059641988 | U5: 2007 | V5: 0.02848318813 | W5: 0.02834548768 | X5: 0.02831385411 | Y5: 0.02834852844 | Z5: 2007 | AA5: 0.02847266586 | AB5: 0.02800836456 | AC5: 0.02626192173 | AD5: 0.02643866836 | AE5: 2007 | AF5: 0.01448379122 | AG5: 0.01586427721 | AH5: 0.01337258975 | AI5: 0.01339263807
A6: 2008 | B6: 0.02289172971 | C6: 0.01558356938 | D6: 0.01568440736 | E6: 0.01184793785 | F6: 2008 | G6: 0.02181318534 | H6: 0.01698048926 | I6: 0.01684658499 | J6: 0.01417798503 | K6: 2008 | L6: 0.01902189686 | M6: 0.01678067401 | N6: 0.01657284758 | O6: 0.01570091812 | P6: 2008 | Q6: 0.02188863666 | R6: 0.02002338284 | S6: 0.01976040279 | T6: 0.01939339039 | U6: 2008 | V6: 0.02744912441 | W6: 0.02735493265 | X6: 0.02696315651 | Y6: 0.02685733495 | Z6: 2008 | AA6: 0.02763354408 | AB6: 0.02777002246 | AC6: 0.0259117817 | AD6: 0.02599435666 | AE6: 2008 | AF6: 0.01469178768 | AG6: 0.01660338072 | AH6: 0.01383695951 | AI6: 0.01373005291
A7: 2009 | B7: 0.02277430553 | C7: 0.01438144811 | D7: 0.01453764552 | E7: 0.01003029898 | F7: 2009 | G7: 0.02189202986 | H7: 0.01635169731 | I7: 0.01620888164 | J7: 0.01301524553 | K7: 2009 | L7: 0.01973763967 | M7: 0.01704903068 | N7: 0.01681970733 | O7: 0.0156779702 | P7: 2009 | Q7: 0.02152920235 | R7: 0.0188963735 | S7: 0.01861889883 | T7: 0.01800288518 | U7: 2009 | V7: 0.0262685804 | W7: 0.02617964661 | X7: 0.02543593207 | Y7: 0.02511689332 | Z7: 2009 | AA7: 0.02684052686 | AB7: 0.02742650279 | AC7: 0.02555290405 | AD7: 0.02545616587 | AE7: 2009 | AF7: 0.01482092248 | AG7: 0.01726454314 | AH7: 0.01417866022 | AI7: 0.01388384527
A8: 2010 | B8: 0.02271325424 | C8: 0.01322764476 | D8: 0.01344966914 | E8: 0.008231244692 | F8: 2010 | G8: 0.02193773688 | H8: 0.01569981466 | I8: 0.01555459432 | J8: 0.01180424651 | K8: 2010 | L8: 0.02040328109 | M8: 0.01726536795 | N8: 0.01701700378 | O8: 0.01557792868 | P8: 2010 | Q8: 0.02113282056 | R8: 0.0176466219 | S8: 0.0173729365 | T8: 0.01644400968 | U8: 2010 | V8: 0.02495513113 | W8: 0.02478066955 | X8: 0.0237449794 | Y8: 0.02312651369 | Z8: 2010 | AA8: 0.02592791258 | AB8: 0.02681519756 | AC8: 0.02498280035 | AD8: 0.02460592026 | AE8: 2010 | AF8: 0.01469000713 | AG8: 0.01764485763 | AH8: 0.01422109058 | AI8: 0.01367093188
A9: 2011 | B9: 0.02264845626 | C9: 0.0121035032 | D9: 0.01239948686 | E9: 0.006446350937 | F9: 2011 | G9: 0.02194711473 | H9: 0.0150474458 | I9: 0.01491087928 | J9: 0.01058534746 | K9: 2011 | L9: 0.02077176195 | M9: 0.01722513645 | N9: 0.01696107768 | O9: 0.01521062177 | P9: 2011 | Q9: 0.02070165387 | R9: 0.01633865801 | S9: 0.01609075737 | T9: 0.01478226561 | U9: 2011 | V9: 0.02358955458 | W9: 0.02326061514 | X9: 0.02196706079 | Y9: 0.02094942819 | Z9: 2011 | AA9: 0.02489865223 | AB9: 0.0259671053 | AC9: 0.02419297842 | AD9: 0.02341261625 | AE9: 2011 | AF9: 0.01425580945 | AG9: 0.01775157201 | AH9: 0.0139319896 | AI9: 0.01304807591
A10: 2012 | B10: 0.02258193012 | C10: 0.01107794861 | D10: 0.01145284485 | E10: 0.004761066939 | F10: 2012 | G10: 0.02195095497 | H10: 0.01444650013 | I10: 0.01433826059 | J10: 0.009436248978 | K10: 2012 | L10: 0.02084382819 | M10: 0.01697236706 | N10: 0.01670057322 | O10: 0.01463370311 | P10: 2012 | Q10: 0.02037450331 | R10: 0.01520107332 | S10: 0.01500211651 | T10: 0.01324662589 | U10: 2012 | V10: 0.02243382931 | W10: 0.02188461944 | X10: 0.02035502332 | Y10: 0.01882437564 | Z10: 2012 | AA10: 0.0237740682 | AB10: 0.02500184493 | AC10: 0.02320151642 | AD10: 0.02187573977 | AE10: 2012 | AF10: 0.01363588003 | AG10: 0.01773049182 | AH10: 0.01344007667 | AI10: 0.01213043219
A11: 2013 | B11: 0.02252779328 | C11: 0.01022743546 | D11: 0.0106752916 | E11: 0.003267837014 | F11: 2013 | G11: 0.02193323645 | H11: 0.01385592733 | I11: 0.01380778082 | J11: 0.00835400651 | K11: 2013 | L11: 0.0208517865 | M11: 0.01679770142 | N11: 0.01652205038 | O11: 0.01414052781 | P11: 2013 | Q11: 0.02010903056 | R11: 0.0143025879 | S11: 0.01415186204 | T11: 0.01189945885 | U11: 2013 | V11: 0.0216019847 | W11: 0.02079627437 | X11: 0.01904002607 | Y11: 0.01688411503 | Z11: 2013 | AA11: 0.02296615477 | AB11: 0.02422160458 | AC11: 0.02242971647 | AD11: 0.02039609127 | AE11: 2013 | AF11: 0.01305299258 | AG11: 0.01764375508 | AH11: 0.01297427757 | AI11: 0.01113822793
A12: 2014 | B12: 0.02213316422 | C12: 0.00960755287 | D12: 0.01009456286 | E12: 0.002015232758 | F12: 2014 | G12: 0.02158475383 | H12: 0.01334708526 | I12: 0.01337469506 | J12: 0.007407646671 | K12: 2014 | L12: 0.02072045928 | M12: 0.01660729959 | N12: 0.01635930813 | O12: 0.01367698216 | P12: 2014 | Q12: 0.01979615093 | R12: 0.01370077346 | S12: 0.01357341994 | T12: 0.01079373073 | U12: 2014 | V12: 0.02076713055 | W12: 0.02002964333 | X12: 0.01806916695 | Y12: 0.01519963303 | Z12: 2014 | AA12: 0.02214300829 | AB12: 0.023640922 | AC12: 0.0218690363 | AD12: 0.01898371255 | AE12: 2014 | AF12: 0.01250480247 | AG12: 0.01760595477 | AH12: 0.01264799802 | AI12: 0.01019590723
A13: 2015 | B13: 0.02115560761 | C13: 0.009116436496 | D13: 0.009621524828 | E13: 0.001037135962 | F13: 2015 | G13: 0.02066950015 | H13: 0.01284120481 | I13: 0.01292940414 | J13: 0.006674466819 | K13: 2015 | L13: 0.02033642522 | M13: 0.01635725654 | N13: 0.01613651926 | O13: 0.0132492716 | P13: 2015 | Q13: 0.01939591185 | R13: 0.01313080532 | S13: 0.01302546865 | T13: 0.009887185279 | U13: 2015 | V13: 0.01992954086 | W13: 0.01926504389 | X13: 0.01713446513 | Y13: 0.01395306793 | Z13: 2015 | AA13: 0.02129428269 | AB13: 0.02301795929 | AC13: 0.02127697193 | AD13: 0.01788793183 | AE13: 2015 | AF13: 0.01202323114 | AG13: 0.01751669683 | AH13: 0.01233433274 | AI13: 0.009376222099
A14: 2016 | B14: 0.01974220877 | C14: 0.008854917662 | D14: 0.009341395545 | E14: 0.0003629781222 | F14: 2016 | G14: 0.01932961115 | H14: 0.01234767056 | I14: 0.01246937701 | J14: 0.006172839025 | K14: 2016 | L14: 0.01973848067 | M14: 0.0160002079 | N14: 0.01580581784 | O14: 0.01295067502 | P14: 2016 | Q14: 0.01891949477 | R14: 0.01262221242 | S14: 0.01253628797 | T14: 0.009297875085 | U14: 2016 | V14: 0.01909414094 | W14: 0.01850687102 | X14: 0.0162704385 | Y14: 0.01302126832 | Z14: 2016 | AA14: 0.02042730852 | AB14: 0.02231827041 | AC14: 0.0206284014 | AD14: 0.01692422899 | AE14: 2016 | AF14: 0.01160411476 | AG14: 0.01733175154 | AH14: 0.0120452812 | AI14: 0.008832292924
A15: 2017 | B15: 0.01804005299 | C15: 0.00878109405 | D15: 0.009220466045 | E15: 8.6746885e-05 | F15: 2017 | G15: 0.01770722255 | H15: 0.01187611702 | I15: 0.01200912487 | J15: 0.005873681019 | K15: 2017 | L15: 0.01896542198 | M15: 0.01555456891 | N15: 0.01538547497 | O15: 0.01265297043 | P15: 2017 | Q15: 0.01837808115 | R15: 0.01217151868 | S15: 0.01210256142 | T15: 0.00877111304 | U15: 2017 | V15: 0.0182658561 | W15: 0.0177586697 | X15: 0.01547462791 | Y15: 0.01215841498 | Z15: 2017 | AA15: 0.01954941631 | AB15: 0.0215536065 | AC15: 0.01993271807 | AD15: 0.01600428651 | AE15: 2017 | AF15: 0.01124328951 | AG15: 0.01706196086 | AH15: 0.01177992121 | AI15: 0.00834986272
A16: 2018 | B16: 0.01619622558 | C16: 0.008853063337 | D16: 0.009225027357 | E16: 0.0005023063632 | F16: 2018 | G16: 0.01594447007 | H16: 0.01143617868 | I16: 0.01156315891 | J16: 0.00592878019 | K16: 2018 | L16: 0.01805604551 | M16: 0.0150387548 | N16: 0.01489376173 | O16: 0.01235873564 | P16: 2018 | Q16: 0.01778285243 | R16: 0.01177524806 | S16: 0.01172097248 | T16: 0.008362852068 | U16: 2018 | V16: 0.01744961163 | W16: 0.01702398494 | X16: 0.01474457424 | Y16: 0.01142715744 | Z16: 2018 | AA16: 0.01866793659 | AB16: 0.02073571871 | AC16: 0.01919931528 | AD16: 0.01516915197 | AE16: 2018 | AF16: 0.01093659157 | AG16: 0.01671816669 | AH16: 0.01153733057 | AI16: 0.007983823459
A17: 2019 | B17: 0.01435781186 | C17: 0.009028923203 | D17: 0.009321370513 | E17: 0.001453562824 | F17: 2019 | G17: 0.01418348945 | H17: 0.01103749006 | I17: 0.01114599033 | J17: 0.006262112939 | K17: 2019 | L17: 0.01704914761 | M17: 0.0144711808 | N17: 0.01434894918 | O17: 0.01207049937 | P17: 2019 | Q17: 0.01714499008 | R17: 0.01142992451 | S17: 0.01138820466 | T17: 0.008063199327 | U17: 2019 | V17: 0.01665033286 | W17: 0.01630636174 | X17: 0.01407781834 | Y17: 0.01081805061 | Z17: 2019 | AA17: 0.01779019988 | AB17: 0.01987635819 | AC17: 0.01843758639 | AD17: 0.01441475617 | AE17: 2019 | AF17: 0.01067985711 | AG17: 0.01631121098 | AH17: 0.01131658709 | AI17: 0.007724264643
A18: 2020 | B18: 0.01267189713 | C18: 0.009266771328 | D18: 0.009475786543 | E18: 0.002784422535 | F18: 2020 | G18: 0.0125664164 | H18: 0.01068968563 | I18: 0.01077213033 | J18: 0.006797655665 | K18: 2020 | L18: 0.01598352462 | M18: 0.01387026217 | N18: 0.01376930842 | O18: 0.01179079033 | P18: 2020 | Q18: 0.01647567555 | R18: 0.01113207195 | S18: 0.01110094145 | T18: 0.007862261978 | U18: 2020 | V18: 0.01587294508 | W18: 0.01560934509 | X18: 0.01347190107 | Y18: 0.01032164941 | Z18: 2020 | AA18: 0.01692353671 | AB18: 0.01898727607 | AC18: 0.01765692475 | AD18: 0.0137370299 | AE18: 2020 | AF18: 0.01046892232 | AG18: 0.01585193564 | AH18: 0.01111676856 | AI18: 0.007561275772
A19: 2021 | B19: 0.01128556671 | C19: 0.009524705391 | D19: 0.009654566476 | E19: 0.004338791762 | F19: 2021 | G19: 0.01123538666 | H19: 0.01040239992 | I19: 0.01045609011 | J19: 0.00745938477 | K19: 2021 | L19: 0.01489797291 | M19: 0.01325441414 | N19: 0.01317311052 | O19: 0.01152213723 | P19: 2021 | Q19: 0.01578609029 | R19: 0.01087821434 | S19: 0.01085586635 | T19: 0.007750147181 | U19: 2021 | V19: 0.01512237362 | W19: 0.01493648 | X19: 0.01292436331 | Y19: 0.009928508735 | Z19: 2021 | AA19: 0.01607527763 | AB19: 0.0180802235 | AC19: 0.01686672371 | AD19: 0.01313190397 | AE19: 2021 | AF19: 0.01029962336 | AG19: 0.01535118261 | AH19: 0.0109369528 | AI19: 0.00748494635
A20: 2022 | B20: 0.0103459059 | C20: 0.009760823071 | D20: 0.009824001343 | E20: 0.005960576773 | F20: 2022 | G20: 0.01033253595 | H20: 0.01018526741 | I20: 0.01021238084 | J20: 0.008171276655 | K20: 2022 | L20: 0.01383128882 | M20: 0.01264205194 | N20: 0.01257862656 | O20: 0.01126706879 | P20: 2022 | Q20: 0.01508741576 | R20: 0.01066487563 | S20: 0.01064966286 | T20: 0.007716962095 | U20: 2022 | V20: 0.01440354376 | W20: 0.01429131146 | X20: 0.01243274592 | Y20: 0.009629183503 | Z20: 2022 | AA20: 0.01525275316 | AB20: 0.01716695163 | AC20: 0.01607637662 | AD20: 0.01259530917 | AE20: 2022 | AF20: 0.01016779643 | AG20: 0.01481979381 | AH20: 0.0107762176 | AI20: 0.007485365878
A21: 2023 | B21: 0.01 | C21: 0.009933222048 | D21: 0.009950382174 | E21: 0.007493683836 | F21: 2023 | G21: 0.01 | H21: 0.0100479226 | I21: 0.01005551374 | J21: 0.008857307719 | K21: 2023 | L21: 0.0128222687 | M21: 0.01205159081 | N21: 0.01200412763 | O21: 0.01102811371 | P21: 2023 | Q21: 0.01439083341 | R21: 0.01048857974 | S21: 0.01047901448 | T21: 0.00775281388 | U21: 2023 | V21: 0.01372138083 | W21: 0.01367738448 | X21: 0.01199458975 | Y21: 0.009414228617 | Z21: 2023 | AA21: 0.01446329383 | AB21: 0.0162592116 | AC21: 0.01529527684 | AD21: 0.01212317632 | AE21: 2023 | AF21: 0.01006927769 | AG21: 0.01426861117 | AH21: 0.01063364078 | AI21: 0.007552623858
A22: 2024 | B22: 0.01 | C22: 0.01 | D22: 0.01 | E22: 0.008782019216 | F22: 2024 | G22: 0.01 | H22: 0.01 | I22: 0.01 | J22: 0.009441454365 | K22: 2024 | L22: 0.0119097089 | M22: 0.011501446 | N22: 0.0114678848 | O22: 0.01080780072 | P22: 2024 | Q22: 0.0137075247 | R22: 0.01034585064 | S22: 0.01034060471 | T22: 0.007847809695 | U22: 2024 | V22: 0.01308081013 | W22: 0.01309824405 | X22: 0.01160743567 | Y22: 0.009274198988 | Z22: 2024 | AA22: 0.01371423017 | AB22: 0.01536875455 | AC22: 0.01453281772 | AD22: 0.0117114362 | AE22: 2024 | AF22: 0.009999903321 | AG22: 0.01370847662 | AH22: 0.01050830013 | AI22: 0.007676809791
A23: 2025 | B23: 0.01 | C23: 0.01 | D23: 0.01 | E23: 0.009669489182 | F23: 2025 | G23: 0.01 | H23: 0.01 | I23: 0.01 | J23: 0.009847692991 | K23: 2025 | L23: 0.01113240579 | M23: 0.01101003274 | N23: 0.01098816915 | O23: 0.01060865852 | P23: 2025 | Q23: 0.01304867108 | R23: 0.01023321226 | S23: 0.01023111704 | T23: 0.007992056701 | U23: 2025 | V23: 0.01248675697 | W23: 0.01255743517 | X23: 0.01126882455 | Y23: 0.009199649522 | Z23: 2025 | AA23: 0.01301289271 | AB23: 0.01450733164 | AC23: 0.0137983926 | AD23: 0.01135601962 | AE23: 2025 | AF23: 0.009955509503 | AG23: 0.01315023208 | AH23: 0.01039927345 | AI23: 0.00784801318
A25: Improvement rates for various scales, Male | L25: 21 | M25: 4 | N25: 7 | O25: 30 | P25: 40 | Q25: 50 | R25: 60 | S25: 70 | T25: 80 | U25: 90
A26: Age 30 | B26: MI2017 | C26: MIH6U3 | D26: MIO6U3 | E26: MIO8U3 | F26: Age 40 | G26: MI2017 | H26: MIH6U3 | I26: MIO6U3 | J26: MIO8U3 | K26: Age 50 | L26: MI2017 | M26: MIH6U3 | N26: MIO6U3 | O26: MIO8U3 | P26: Age 60 | Q26: MI2017 | R26: MIH6U3 | S26: MIO6U3 | T26: MIO8U3 | U26: Age 70 | V26: MI2017 | W26: MIH6U3 | X26: MIO6U3 | Y26: MIO8U3 | Z26: Age 80 | AA26: MI2017 | AB26: MIH6U3 | AC26: MIO6U3 | AD26: MIO8U3 | AE26: Age 90 | AF26: MI2017 | AG26: MIH6U3 | AH26: MIO6U3 | AI26: MIO8U3
A27: 2005 | B27: 0.02345105937 | C27: 0.01906425299 | D27: 0.01906145202 | E27: 0.01691854144 | F27: 2005 | G27: 0.02144230806 | H27: 0.01858461213 | I27: 0.0184938377 | J27: 0.01713354333 | K27: 2005 | L27: 0.0172510777 | M27: 0.01616032301 | N27: 0.01600989044 | O27: 0.01574969525 | P27: 2005 | Q27: 0.02323211281 | R27: 0.02293060266 | S27: 0.02278009501 | T27: 0.02283131985 | U27: 2005 | V27: 0.03009703581 | W27: 0.02993245513 | X27: 0.03045962312 | Y27: 0.03061078747 | Z27: 2005 | AA27: 0.02960048039 | AB27: 0.02804961854 | AC27: 0.02653719785 | AD27: 0.02674203209 | AE27: 2005 | AF27: 0.01377210278 | AG27: 0.01423462563 | AH27: 0.01206996425 | AI27: 0.01221142458
A28: 2006 | B28: 0.0232362279 | C28: 0.01795023066 | D28: 0.01797192437 | E28: 0.01532238555 | F28: 2006 | G28: 0.02155236775 | H28: 0.0180777071 | I28: 0.01797072941 | J28: 0.01622449406 | K28: 2006 | L28: 0.01771865774 | M28: 0.01628370368 | N28: 0.01611623084 | O28: 0.01568627981 | P28: 2006 | Q28: 0.02269800093 | R28: 0.02201045114 | S28: 0.02181511473 | T28: 0.02177447345 | U28: 2006 | V28: 0.02938777422 | W28: 0.02922887752 | X28: 0.02950276665 | Y28: 0.0296180025 | Z28: 2006 | AA28: 0.02920017315 | AB28: 0.02815640606 | AC28: 0.02651574885 | AD28: 0.0267256773 | AE28: 2006 | AF28: 0.01416790424 | AG28: 0.01505676719 | AH28: 0.01276328845 | AI28: 0.01286293558
A29: 2007 | B29: 0.02305093719 | C29: 0.01678600012 | D29: 0.01684210584 | E29: 0.01362684824 | F29: 2007 | G29: 0.0217092952 | H29: 0.01757137056 | I29: 0.01745022513 | J29: 0.0152656752 | K29: 2007 | L29: 0.01832224872 | M29: 0.01650488957 | N29: 0.01631810338 | O29: 0.01568423275 | P29: 2007 | Q29: 0.02219718727 | R29: 0.02100730764 | S29: 0.02077228265 | T29: 0.02059641988 | U29: 2007 | V29: 0.02848318813 | W29: 0.02834548768 | X29: 0.02831385411 | Y29: 0.02834852844 | Z29: 2007 | AA29: 0.02847266586 | AB29: 0.02800836456 | AC29: 0.02626192173 | AD29: 0.02643866836 | AE29: 2007 | AF29: 0.01448379122 | AG29: 0.01586427721 | AH29: 0.01337258975 | AI29: 0.01339263807
A30: 2008 | B30: 0.02289172971 | C30: 0.01558356938 | D30: 0.01568440736 | E30: 0.01184793785 | F30: 2008 | G30: 0.02181318534 | H30: 0.01698048926 | I30: 0.01684658499 | J30: 0.01417798503 | K30: 2008 | L30: 0.01902189686 | M30: 0.01678067401 | N30: 0.01657284758 | O30: 0.01570091812 | P30: 2008 | Q30: 0.02188863666 | R30: 0.02002338284 | S30: 0.01976040279 | T30: 0.01939339039 | U30: 2008 | V30: 0.02744912441 | W30: 0.02735493265 | X30: 0.02696315651 | Y30: 0.02685733495 | Z30: 2008 | AA30: 0.02763354408 | AB30: 0.02777002246 | AC30: 0.0259117817 | AD30: 0.02599435666 | AE30: 2008 | AF30: 0.01469178768 | AG30: 0.01660338072 | AH30: 0.01383695951 | AI30: 0.01373005291
A31: 2009 | B31: 0.02277430553 | C31: 0.01438144811 | D31: 0.01453764552 | E31: 0.01003029898 | F31: 2009 | G31: 0.02189202986 | H31: 0.01635169731 | I31: 0.01620888164 | J31: 0.01301524553 | K31: 2009 | L31: 0.01973763967 | M31: 0.01704903068 | N31: 0.01681970733 | O31: 0.0156779702 | P31: 2009 | Q31: 0.02152920235 | R31: 0.0188963735 | S31: 0.01861889883 | T31: 0.01800288518 | U31: 2009 | V31: 0.0262685804 | W31: 0.02617964661 | X31: 0.02543593207 | Y31: 0.02511689332 | Z31: 2009 | AA31: 0.02684052686 | AB31: 0.02742650279 | AC31: 0.02555290405 | AD31: 0.02545616587 | AE31: 2009 | AF31: 0.01482092248 | AG31: 0.01726454314 | AH31: 0.01417866022 | AI31: 0.01388384527
A32: 2010 | B32: 0.02271325424 | C32: 0.01322764476 | D32: 0.01344966914 | E32: 0.008231244692 | F32: 2010 | G32: 0.02193773688 | H32: 0.01569981466 | I32: 0.01555459432 | J32: 0.01180424651 | K32: 2010 | L32: 0.02040328109 | M32: 0.01726536795 | N32: 0.01701700378 | O32: 0.01557792868 | P32: 2010 | Q32: 0.02113282056 | R32: 0.0176466219 | S32: 0.0173729365 | T32: 0.01644400968 | U32: 2010 | V32: 0.02495513113 | W32: 0.02478066955 | X32: 0.0237449794 | Y32: 0.02312651369 | Z32: 2010 | AA32: 0.02592791258 | AB32: 0.02681519756 | AC32: 0.02498280035 | AD32: 0.02460592026 | AE32: 2010 | AF32: 0.01469000713 | AG32: 0.01764485763 | AH32: 0.01422109058 | AI32: 0.01367093188
A33: 2011 | B33: 0.02264845626 | C33: 0.0121035032 | D33: 0.01239948686 | E33: 0.006446350937 | F33: 2011 | G33: 0.02194711473 | H33: 0.0150474458 | I33: 0.01491087928 | J33: 0.01058534746 | K33: 2011 | L33: 0.02077176195 | M33: 0.01722513645 | N33: 0.01696107768 | O33: 0.01521062177 | P33: 2011 | Q33: 0.02070165387 | R33: 0.01633865801 | S33: 0.01609075737 | T33: 0.01478226561 | U33: 2011 | V33: 0.02358955458 | W33: 0.02326061514 | X33: 0.02196706079 | Y33: 0.02094942819 | Z33: 2011 | AA33: 0.02489865223 | AB33: 0.0259671053 | AC33: 0.02419297842 | AD33: 0.02341261625 | AE33: 2011 | AF33: 0.01425580945 | AG33: 0.01775157201 | AH33: 0.0139319896 | AI33: 0.01304807591
A34: 2012 | B34: 0.02258193012 | C34: 0.01107794861 | D34: 0.01145284485 | E34: 0.004761066939 | F34: 2012 | G34: 0.02195095497 | H34: 0.01444650013 | I34: 0.01433826059 | J34: 0.009436248978 | K34: 2012 | L34: 0.02084382819 | M34: 0.01697236706 | N34: 0.01670057322 | O34: 0.01463370311 | P34: 2012 | Q34: 0.02037450331 | R34: 0.01520107332 | S34: 0.01500211651 | T34: 0.01324662589 | U34: 2012 | V34: 0.02243382931 | W34: 0.02188461944 | X34: 0.02035502332 | Y34: 0.01882437564 | Z34: 2012 | AA34: 0.0237740682 | AB34: 0.02500184493 | AC34: 0.02320151642 | AD34: 0.02187573977 | AE34: 2012 | AF34: 0.01363588003 | AG34: 0.01773049182 | AH34: 0.01344007667 | AI34: 0.01213043219
A35: 2013 | B35: 0.02252779328 | C35: 0.01022743546 | D35: 0.0106752916 | E35: 0.003267837014 | F35: 2013 | G35: 0.02193323645 | H35: 0.01385592733 | I35: 0.01380778082 | J35: 0.00835400651 | K35: 2013 | L35: 0.0208517865 | M35: 0.01679770142 | N35: 0.01652205038 | O35: 0.01414052781 | P35: 2013 | Q35: 0.02010903056 | R35: 0.0143025879 | S35: 0.01415186204 | T35: 0.01189945885 | U35: 2013 | V35: 0.0216019847 | W35: 0.02079627437 | X35: 0.01904002607 | Y35: 0.01688411503 | Z35: 2013 | AA35: 0.02296615477 | AB35: 0.02422160458 | AC35: 0.02242971647 | AD35: 0.02039609127 | AE35: 2013 | AF35: 0.01305299258 | AG35: 0.01764375508 | AH35: 0.01297427757 | AI35: 0.01113822793
A36: 2014 | B36: 0.02213316422 | C36: 0.00960755287 | D36: 0.01009456286 | E36: 0.002015232758 | F36: 2014 | G36: 0.02158475383 | H36: 0.01334708526 | I36: 0.01337469506 | J36: 0.007407646671 | K36: 2014 | L36: 0.02072045928 | M36: 0.01660729959 | N36: 0.01635930813 | O36: 0.01367698216 | P36: 2014 | Q36: 0.01979615093 | R36: 0.01370077346 | S36: 0.01357341994 | T36: 0.01079373073 | U36: 2014 | V36: 0.02076713055 | W36: 0.02002964333 | X36: 0.01806916695 | Y36: 0.01519963303 | Z36: 2014 | AA36: 0.02214300829 | AB36: 0.023640922 | AC36: 0.0218690363 | AD36: 0.01898371255 | AE36: 2014 | AF36: 0.01250480247 | AG36: 0.01760595477 | AH36: 0.01264799802 | AI36: 0.01019590723
A37: 2015 | B37: 0.02115560761 | C37: 0.009131227505 | D37: 0.009632472571 | E37: 0.001037135962 | F37: 2015 | G37: 0.02066950015 | H37: 0.01283025377 | I37: 0.01291677356 | J37: 0.006674466819 | K37: 2015 | L37: 0.02033642522 | M37: 0.01634681026 | N37: 0.01612628318 | O37: 0.0132492716 | P37: 2015 | Q37: 0.01939591185 | R37: 0.01313096559 | S37: 0.0130256101 | T37: 0.009887185279 | U37: 2015 | V37: 0.01992954086 | W37: 0.01926116234 | X37: 0.01713311024 | Y37: 0.01395306793 | Z37: 2015 | AA37: 0.02129428269 | AB37: 0.02301037343 | AC37: 0.02127064817 | AD37: 0.01788793183 | AE37: 2015 | AF37: 0.01202323114 | AG37: 0.01751103916 | AH37: 0.01233392646 | AI37: 0.009376222099
A38: 2016 | B38: 0.01974220877 | C38: 0.008907098406 | D38: 0.00938001893 | E38: 0.0003629781222 | F38: 2016 | G38: 0.01932961115 | H38: 0.01230904611 | I38: 0.01242482732 | J38: 0.006172839025 | K38: 2016 | L38: 0.01973848067 | M38: 0.01596152345 | N38: 0.01576791179 | O38: 0.01295067502 | P38: 2016 | Q38: 0.01891949477 | R38: 0.01262281893 | S38: 0.01253682332 | T38: 0.009297875085 | U38: 2016 | V38: 0.01909414094 | W38: 0.01849218502 | X38: 0.01626531241 | Y38: 0.01302126832 | Z38: 2016 | AA38: 0.02042730852 | AB38: 0.02228956881 | AC38: 0.02060447508 | AD38: 0.01692422899 | AE38: 2016 | AF38: 0.01160411476 | AG38: 0.0173103453 | AH38: 0.0120437441 | AI38: 0.008832292924
A39: 2017 | B39: 0.01804005299 | C39: 0.008882788308 | D39: 0.009295741586 | E39: 0.0004015076854 | F39: 2017 | G39: 0.01770722255 | H39: 0.01180086634 | I39: 0.01192232644 | J39: 0.006016296327 | K39: 2017 | L39: 0.01896542198 | M39: 0.01547450542 | N39: 0.01530702244 | O39: 0.01264171368 | P39: 2017 | Q39: 0.01837808115 | R39: 0.01217280564 | S39: 0.0121036974 | T39: 0.008782859037 | U39: 2017 | V39: 0.0182658561 | W39: 0.0177275167 | X39: 0.01546375451 | Y39: 0.01216573523 | Z39: 2017 | AA39: 0.01954941631 | AB39: 0.02149272206 | AC39: 0.01988196344 | AD39: 0.01600150927 | AE39: 2017 | AF39: 0.01124328951 | AG39: 0.01701655175 | AH39: 0.01177666075 | AI39: 0.008362119482
A40: 2018 | B40: 0.01619622558 | C40: 0.009005919949 | D40: 0.009338180186 | E40: 0.001585608571 | F40: 2018 | G40: 0.01594447007 | H40: 0.01132311849 | I40: 0.01143274104 | J40: 0.006419711382 | K40: 2018 | L40: 0.01805604551 | M40: 0.01490882246 | N40: 0.01476644363 | O40: 0.01231738902 | P40: 2018 | Q40: 0.01778285243 | R40: 0.01177739786 | S40: 0.01172287012 | T40: 0.008407131445 | U40: 2018 | V40: 0.01744961163 | W40: 0.01697196272 | X40: 0.01472641759 | Y40: 0.01145475794 | Z40: 2018 | AA40: 0.01866793659 | AB40: 0.0206340471 | AC40: 0.01911455964 | AD40: 0.01515869229 | AE40: 2018 | AF40: 0.01093659157 | AG40: 0.01664233708 | AH40: 0.01153188622 | AI40: 0.008030027657
A41: 2019 | B41: 0.01435781186 | C41: 0.009224116065 | D41: 0.009465874378 | E41: 0.003495575555 | F41: 2019 | G41: 0.01418348945 | H41: 0.01089320663 | I41: 0.01097954123 | J41: 0.007187765535 | K41: 2019 | L41: 0.01704914761 | M41: 0.01428754082 | N41: 0.01416900382 | O41: 0.01198575031 | P41: 2019 | Q41: 0.01714499008 | R41: 0.01143306773 | S41: 0.01139097929 | T41: 0.008156742556 | U41: 2019 | V41: 0.01665033286 | W41: 0.01623032841 | X41: 0.01405128271 | Y41: 0.01087637058 | Z41: 2019 | AA41: 0.01779019988 | AB41: 0.01972775784 | AC41: 0.01831371009 | AD41: 0.01439268282 | AE41: 2019 | AF41: 0.01067985711 | AG41: 0.01620037983 | AH41: 0.01130863033 | AI41: 0.007821872679
A42: 2020 | B42: 0.01267189713 | C42: 0.009484999391 | D42: 0.009637363808 | E42: 0.005711703414 | F42: 2020 | G42: 0.0125664164 | H42: 0.01052853481 | I42: 0.0105861971 | J42: 0.008125140129 | K42: 2020 | L42: 0.01598352462 | M42: 0.01363372677 | N42: 0.01353753149 | O42: 0.01165484683 | P42: 2020 | Q42: 0.01647567555 | R42: 0.01113628739 | S42: 0.01110466271 | T42: 0.008017742617 | U42: 2020 | V42: 0.01587294508 | W42: 0.0155074191 | X42: 0.01343633093 | Y42: 0.01041860727 | Z42: 2020 | AA42: 0.01692353671 | AB42: 0.0187880682 | AC42: 0.0174908612 | AD42: 0.01370038559 | AE42: 2020 | AF42: 0.01046892232 | AG42: 0.01570335856 | AH42: 0.01110610289 | AI42: 0.007723509776
A43: 2021 | B43: 0.01128556671 | C43: 0.009736192665 | D43: 0.009811188124 | E43: 0.007814286924 | F43: 2021 | G43: 0.01123538666 | H43: 0.01024650706 | I43: 0.01027617879 | J43: 0.009036516509 | K43: 2021 | L43: 0.01489797291 | M43: 0.01297044658 | N43: 0.01289485513 | O43: 0.01133272784 | P43: 2021 | Q43: 0.01578609029 | R43: 0.010883529 | S43: 0.01086055816 | T43: 0.007976181875 | U43: 2021 | V43: 0.01512237362 | W43: 0.01480804013 | X43: 0.0128795433 | Y43: 0.01006950213 | Z43: 2021 | AA43: 0.01607527763 | AB43: 0.0178291921 | AC43: 0.01665745937 | AD43: 0.01307870538 | AE43: 2021 | AF43: 0.01029962336 | AG43: 0.01516395183 | AH43: 0.01092351372 | AI43: 0.007720794176
A44: 2022 | B44: 0.0103459059 | C44: 0.009925318622 | D44: 0.009945886972 | E44: 0.00938362086 | F44: 2022 | G44: 0.01033253595 | H44: 0.01006452744 | I44: 0.01007295638 | J44: 0.009726576018 | K44: 2022 | L44: 0.01383128882 | M44: 0.01232076653 | N44: 0.01226380322 | O44: 0.01102744263 | P44: 2022 | Q44: 0.01508741576 | R44: 0.01067126469 | S44: 0.01065530344 | T44: 0.008018110575 | U44: 2022 | V44: 0.01440354376 | W44: 0.01413699683 | X44: 0.01237890087 | Y44: 0.009817089298 | Z44: 2022 | AA44: 0.01525275316 | AB44: 0.01686534345 | AC44: 0.01582495101 | AD44: 0.01252454693 | AE44: 2022 | AF44: 0.01016779643 | AG44: 0.0145948382 | AH44: 0.01076007262 | AI44: 0.00779958111
A45: 2023 | B45: 0.01 | C45: 0.01 | D45: 0.01 | E45: 0.01 | F45: 2023 | G45: 0.01 | H45: 0.01 | I45: 0.01 | J45: 0.01 | K45: 2023 | L45: 0.0128222687 | M45: 0.01170775288 | N45: 0.01166720424 | O45: 0.01074704047 | P45: 2023 | Q45: 0.01439083341 | R45: 0.01049596661 | S45: 0.01048553635 | T45: 0.008129578964 | U45: 2023 | V45: 0.01372138083 | W45: 0.01349909453 | X45: 0.01193238471 | Y45: 0.009649402891 | Z45: 2023 | AA45: 0.01446329383 | AB45: 0.01591073616 | AC45: 0.01500478253 | AD45: 0.01203481499 | AE45: 2023 | AF45: 0.01006927769 | AG45: 0.01400869623 | AH45: 0.0106149894 | AI45: 0.007945725806
A46: 2024 | B46: 0.01 | C46: 0.01 | D46: 0.01 | E46: 0.01 | F46: 2024 | G46: 0.01 | H46: 0.01 | I46: 0.01 | J46: 0.01 | K46: 2024 | L46: 0.0119097089 | M46: 0.01115447189 | N46: 0.01112788666 | O46: 0.01049957063 | P46: 2024 | Q46: 0.0137075247 | R46: 0.0103541069 | S46: 0.01034789468 | T46: 0.008296637289 | U46: 2024 | V46: 0.01308081013 | W46: 0.01289913857 | X46: 0.01153797588 | Y46: 0.009554477038 | Z46: 2024 | AA46: 0.01371423017 | AB46: 0.01497958416 | AC46: 0.01420840032 | AD46: 0.01160641433 | AE46: 2024 | AF46: 0.009999903321 | AG46: 0.01341820446 | AH46: 0.01048747389 | AI46: 0.008145083492
A47: 2025 | B47: 0.01 | C47: 0.01 | D47: 0.01 | E47: 0.01 | F47: 2025 | G47: 0.01 | H47: 0.01 | I47: 0.01 | J47: 0.01 | K47: 2025 | L47: 0.01113240579 | M47: 0.01068398984 | N47: 0.01066867897 | O47: 0.01029308239 | P47: 2025 | Q47: 0.01304867108 | R47: 0.0102421577 | S47: 0.01023901623 | T47: 0.008505335796 | U47: 2025 | V47: 0.01248675697 | W47: 0.01234193428 | X47: 0.01119365541 | Y47: 0.009520345865 | Z47: 2025 | AA47: 0.01301289271 | AB47: 0.01408610135 | AC47: 0.0134472508 | AD47: 0.01123624969 | AE47: 2025 | AF47: 0.009955509503 | AG47: 0.01283604147 | AH47: 0.01037673589 | AI47: 0.008383509397

Sheet Female
A1: Improvement rates for various scales, Female | L1: 21 | M1: 4 | N1: 7 | O1: 30 | P1: 40 | Q1: 50 | R1: 60 | S1: 70 | T1: 80 | U1: 90
A2: Age 30 | B2: MI2017 | C2: MIH6U4 | D2: MIO6U4 | E2: MIO8U6 | F2: Age 40 | G2: MI2017 | H2: MIH6U4 | I2: MIO6U4 | J2: MIO8U6 | K2: Age 50 | L2: MI2017 | M2: MIH6U4 | N2: MIO6U4 | O2: MIO8U6 | P2: Age 60 | Q2: MI2017 | R2: MIH6U4 | S2: MIO6U4 | T2: MIO8U6 | U2: Age 70 | V2: MI2017 | W2: MIH6U4 | X2: MIO6U4 | Y2: MIO8U6 | Z2: Age 80 | AA2: MI2017 | AB2: MIH6U4 | AC2: MIO6U4 | AD2: MIO8U6 | AE2: Age 90 | AF2: MI2017 | AG2: MIH6U4 | AH2: MIO6U4 | AI2: MIO8U6
A3: 2005 | B3: 0.01268613183 | C3: 0.009993809825 | D3: 0.0102709982 | E3: 0.008782434465 | F3: 2005 | G3: 0.01284311801 | H3: 0.01203509413 | I3: 0.01186583857 | J3: 0.01091067617 | K3: 2005 | L3: 0.01247370325 | M3: 0.01242179582 | N3: 0.01220887434 | O3: 0.0118424489 | P3: 2005 | Q3: 0.0174576137 | R3: 0.0169226204 | S3: 0.01695359496 | T3: 0.01686451164 | U3: 2005 | V3: 0.01930109375 | W3: 0.01928076314 | X3: 0.01924848558 | Y3: 0.0193053985 | Z3: 2005 | AA3: 0.02179241184 | AB3: 0.02095018139 | AC3: 0.01948381716 | AD3: 0.01960536301 | AE3: 2005 | AF3: 0.0135793816 | AG3: 0.01395375475 | AH3: 0.01282015048 | AI3: 0.01307431273
A4: 2006 | B4: 0.0125068276 | C4: 0.009457713298 | D4: 0.009782441546 | E4: 0.008058546728 | F4: 2006 | G4: 0.01282129441 | H4: 0.01191725474 | I4: 0.01171205524 | J4: 0.01054404095 | K4: 2006 | L4: 0.01245002683 | M4: 0.01241646877 | N4: 0.01215462078 | O4: 0.01161824 | P4: 2006 | Q4: 0.01749221311 | R4: 0.0165247943 | S4: 0.01657128066 | T4: 0.01633940081 | U4: 2006 | V4: 0.01939792761 | W4: 0.01934281624 | X4: 0.01909582587 | Y4: 0.01908973181 | Z4: 2006 | AA4: 0.02175980629 | AB4: 0.02146004087 | AC4: 0.01963074735 | AD4: 0.01975041053 | AE4: 2006 | AF4: 0.01428467499 | AG4: 0.01504251233 | AH4: 0.01367296085 | AI4: 0.01394074668
A5: 2007 | B5: 0.01235954875 | C5: 0.008937124114 | D5: 0.009313117157 | E5: 0.007338904197 | F5: 2007 | G5: 0.01282221485 | H5: 0.01181175909 | I5: 0.01156911449 | J5: 0.01016840323 | K5: 2007 | L5: 0.01250944176 | M5: 0.01251444082 | N5: 0.01219644546 | O5: 0.01145804189 | P5: 2007 | Q5: 0.01739304654 | R5: 0.01589305277 | S5: 0.01596311101 | T5: 0.01554394032 | U5: 2007 | V5: 0.01936634946 | W5: 0.01927526022 | X5: 0.0188213467 | Y5: 0.01871958182 | Z5: 2007 | AA5: 0.02122136391 | AB5: 0.02155798024 | AC5: 0.01938676032 | AD5: 0.01948694817 | AE5: 2007 | AF5: 0.01442358141 | AG5: 0.01566269872 | AH5: 0.01398202595 | AI5: 0.01423904581
A6: 2008 | B6: 0.01224309787 | C6: 0.008438537541 | D6: 0.008868512359 | E6: 0.006631451582 | F6: 2008 | G6: 0.01284101318 | H6: 0.01171190363 | I6: 0.01143195979 | J6: 0.009781365963 | K6: 2008 | L6: 0.01264153546 | M6: 0.01269768622 | N6: 0.01231755174 | O6: 0.0113452124 | P6: 2008 | Q6: 0.0173424493 | R6: 0.01516888324 | S6: 0.01527359052 | T6: 0.01461023853 | U6: 2008 | V6: 0.01925586778 | W6: 0.0191378836 | X6: 0.01846775784 | Y6: 0.0182304374 | Z6: 2008 | AA6: 0.0204253073 | AB6: 0.02138869679 | AC6: 0.01892020827 | AD6: 0.01896673082 | AE6: 2008 | AF6: 0.01434787869 | AG6: 0.01605987996 | AH6: 0.01410105405 | AI6: 0.01428884339
A7: 2009 | B7: 0.01218494889 | C7: 0.008000448822 | D7: 0.00848601544 | E7: 0.005975947773 | F7: 2009 | G7: 0.01291458641 | H7: 0.01165334097 | I7: 0.01133912047 | J7: 0.00942391321 | K7: 2009 | L7: 0.01279247385 | M7: 0.01291302463 | N7: 0.0124674921 | O7: 0.01123209525 | P7: 2009 | Q7: 0.01729675475 | R7: 0.01436805036 | S7: 0.01451978538 | T7: 0.01354902911 | U7: 2009 | V7: 0.01896310772 | W7: 0.01875013123 | X7: 0.01791949703 | Y7: 0.01750616575 | Z7: 2009 | AA7: 0.01960869238 | AB7: 0.02106953003 | AC7: 0.01839905282 | AD7: 0.01833963663 | AE7: 2009 | AF7: 0.01402135503 | AG7: 0.0162772416 | AH7: 0.01397900269 | AI7: 0.01401361038
A8: 2010 | B8: 0.0121422287 | C8: 0.007588612571 | D8: 0.008128898808 | E8: 0.005341566252 | F8: 2010 | G8: 0.01296223577 | H8: 0.01155741388 | I8: 0.01121404401 | J8: 0.009027165483 | K8: 2010 | L8: 0.01288281894 | M8: 0.01307358002 | N8: 0.01256423572 | O8: 0.01104255927 | P8: 2010 | Q8: 0.01719905875 | R8: 0.01344435433 | S8: 0.0136561308 | T8: 0.01231423201 | U8: 2010 | V8: 0.01838732085 | W8: 0.01805024824 | X8: 0.01707301248 | Y8: 0.01644426685 | Z8: 2010 | AA8: 0.01873803659 | AB8: 0.02052325062 | AC8: 0.01775167003 | AD8: 0.0175232402 | AE8: 2010 | AF8: 0.01343269081 | AG8: 0.01622815691 | AH8: 0.01359778956 | AI8: 0.01336300955
A9: 2011 | B9: 0.01211624041 | C9: 0.007221199429 | D9: 0.007812840164 | E9: 0.004749533937 | F9: 2011 | G9: 0.01298196614 | H9: 0.01142587359 | I9: 0.0110621986 | J9: 0.008603224402 | K9: 2011 | L9: 0.01286081182 | M9: 0.01311684539 | N9: 0.01255377129 | O9: 0.01073033078 | P9: 2011 | Q9: 0.01708575345 | R9: 0.01247792515 | S9: 0.0127648854 | T9: 0.01098900507 | U9: 2011 | V9: 0.01774819646 | W9: 0.01721522256 | X9: 0.01614847937 | Y9: 0.01525821176 | Z9: 2011 | AA9: 0.01781282944 | AB9: 0.01979075032 | AC9: 0.01695837209 | AD9: 0.01648567635 | AE9: 2011 | AF9: 0.01297980752 | AG9: 0.01631743272 | AH9: 0.01335272373 | AI9: 0.01268076791
A10: 2012 | B10: 0.01209593011 | C10: 0.006907535042 | D10: 0.007542828361 | E10: 0.004212306334 | F10: 2012 | G10: 0.01293174461 | H10: 0.01122545243 | I10: 0.01085362332 | J10: 0.008131794425 | K10: 2012 | L10: 0.01283801364 | M10: 0.01312474173 | N10: 0.01253148899 | O10: 0.01039730859 | P10: 2012 | Q10: 0.01685704101 | R10: 0.01143858864 | S10: 0.0118148563 | T10: 0.00955487416 | U10: 2012 | V10: 0.01715577468 | W10: 0.01631799554 | X10: 0.01526234925 | Y10: 0.01406588983 | Z10: 2012 | AA10: 0.0170434241 | AB10: 0.01905163505 | AC10: 0.01623012853 | AD10: 0.01542103012 | AE10: 2012 | AF10: 0.01237409286 | AG10: 0.01635562036 | AH10: 0.01296780076 | AI10: 0.01165989533
A11: 2013 | B11: 0.01207589339 | C11: 0.006664777958 | D11: 0.007330166415 | E11: 0.003750237701 | F11: 2013 | G11: 0.01288702951 | H11: 0.01104191285 | I11: 0.01067956565 | J11: 0.007711909162 | K11: 2013 | L11: 0.01280170771 | M11: 0.01305344045 | N11: 0.01245397588 | O11: 0.0100159328 | P11: 2013 | Q11: 0.01667892235 | R11: 0.01062608654 | S11: 0.01109886318 | T11: 0.008317518834 | U11: 2013 | V11: 0.01656659752 | W11: 0.01542632162 | X11: 0.01439514448 | Y11: 0.01285923394 | Z11: 2013 | AA11: 0.01639801461 | AB11: 0.01833496189 | AC11: 0.01554505326 | AD11: 0.01430677702 | AE11: 2013 | AF11: 0.01180412229 | AG11: 0.01635012698 | AH11: 0.01263303314 | AI11: 0.01044999116
A12: 2014 | B12: 0.01200153863 | C12: 0.006480625987 | D12: 0.007168671224 | E12: 0.003363580383 | F12: 2014 | G12: 0.01276997344 | H12: 0.01090252096 | I12: 0.01055035493 | J12: 0.007359774146 | K12: 2014 | L12: 0.01273438538 | M12: 0.01288973853 | N12: 0.012327097 | O12: 0.009600919936 | P12: 2014 | Q12: 0.01646974807 | R12: 0.01012530428 | S12: 0.01063024568 | T12: 0.007310649768 | U12: 2014 | V12: 0.01598725731 | W12: 0.01479454068 | X12: 0.01375960036 | Y12: 0.01185977887 | Z12: 2014 | AA12: 0.01576914693 | AB12: 0.01773886495 | AC12: 0.0150199112 | AD12: 0.01326982594 | AE12: 2014 | AF12: 0.01127664397 | AG12: 0.01658334951 | AH12: 0.01254001251 | AI12: 0.009225871219
A13: 2015 | B13: 0.01183435347 | C13: 0.006430005363 | D13: 0.007117137325 | E13: 0.00307511196 | F13: 2015 | G13: 0.0125295431 | H13: 0.01076434294 | I13: 0.01043028432 | J13: 0.007074868884 | K13: 2015 | L13: 0.0126110259 | M13: 0.01271031855 | N13: 0.01218692245 | O13: 0.009196876904 | P13: 2015 | Q13: 0.01620336029 | R13: 0.00967243983 | S13: 0.0102027491 | T13: 0.006521922061 | U13: 2015 | V13: 0.0154282658 | W13: 0.01418959796 | X13: 0.01315876468 | Y13: 0.01105133388 | Z13: 2015 | AA13: 0.01517330682 | AB13: 0.0171447807 | AC13: 0.01450957613 | AD13: 0.01230706585 | AE13: 2015 | AF13: 0.01083025455 | AG13: 0.01674610356 | AH13: 0.0124376463 | AI13: 0.008127856047
A14: 2016 | B14: 0.01159804643 | C14: 0.006610926362 | D14: 0.007256415572 | E14: 0.002878419004 | F14: 2016 | G14: 0.01219769992 | H14: 0.01063023715 | I14: 0.01032772831 | J14: 0.006878009846 | K14: 2016 | L14: 0.01244062273 | M14: 0.01250340197 | N14: 0.01202341704 | O14: 0.008919542374 | P14: 2016 | Q14: 0.01588710562 | R14: 0.009310528491 | S14: 0.009853438449 | T14: 0.005965516241 | U14: 2016 | V14: 0.01489063524 | W14: 0.01363680841 | X14: 0.01262475007 | Y14: 0.01067285992 | Z14: 2016 | AA14: 0.01461041014 | AB14: 0.01655649969 | AC14: 0.01402862354 | AD14: 0.01166906415 | AE14: 2016 | AF14: 0.01045911066 | AG14: 0.01677683623 | AH14: 0.01231819873 | AI14: 0.006857390474
A15: 2017 | B15: 0.01131632603 | C15: 0.006970107377 | D15: 0.007542840309 | E15: 0.002918501978 | F15: 2017 | G15: 0.01180640536 | H15: 0.01050267035 | I15: 0.01024153852 | J15: 0.00680596975 | K15: 2017 | L15: 0.01223216934 | M15: 0.01227489802 | N15: 0.01184147145 | O15: 0.008691719013 | P15: 2017 | Q15: 0.01552833065 | R15: 0.009032246486 | S15: 0.009576229821 | T15: 0.005492609995 | U15: 2017 | V15: 0.01437537786 | W15: 0.01313388714 | X15: 0.01215366275 | Y15: 0.01032640893 | Z15: 2017 | AA15: 0.01408037278 | AB15: 0.01597668879 | AC15: 0.01357670617 | AD15: 0.0110811669 | AE15: 2017 | AF15: 0.01015736892 | AG15: 0.01668892087 | AH15: 0.01218408453 | AI15: 0.005733579214
A16: 2018 | B16: 0.01101290079 | C16: 0.007454266802 | D16: 0.007932745878 | E16: 0.003367296444 | F16: 2018 | G16: 0.01138762087 | H16: 0.01038410925 | I16: 0.01017056657 | J16: 0.006950717254 | K16: 2018 | L16: 0.01199465921 | M16: 0.01203071595 | N16: 0.01164597637 | O16: 0.008555426516 | P16: 2018 | Q16: 0.01513438199 | R16: 0.008830270037 | S16: 0.009365039325 | T16: 0.005177104357 | U16: 2018 | V16: 0.01388350591 | W16: 0.01267854924 | X16: 0.01174160897 | Y16: 0.01004089201 | Z16: 2018 | AA16: 0.01358311062 | AB16: 0.01540801484 | AC16: 0.01315347675 | AD16: 0.0105887676 | AE16: 2018 | AF16: 0.009919185966 | AG16: 0.01649573085 | AH16: 0.01203771839 | AI16: 0.004887229314
A17: 2019 | B17: 0.01071147922 | C17: 0.00801012303 | D17: 0.008382466623 | E17: 0.004127541854 | F17: 2019 | G17: 0.01097330788 | H17: 0.01027702061 | I17: 0.01011366408 | J17: 0.007262976934 | K17: 2019 | L17: 0.0117370858 | M17: 0.011776765 | N17: 0.01144182248 | O17: 0.008499427669 | P17: 2019 | Q17: 0.01471260626 | R17: 0.008697275367 | S17: 0.009213783069 | T17: 0.005004601514 | U17: 2019 | V17: 0.01341603162 | W17: 0.0122685098 | X17: 0.01138469496 | Y17: 0.009811641354 | Z17: 2019 | AA17: 0.01311853954 | AB17: 0.01485314466 | AC17: 0.01275858801 | AD17: 0.01018479982 | AE17: 2019 | AF17: 0.009738718411 | AG17: 0.01621063953 | AH17: 0.01188151502 | AI17: 0.004294569875
A18: 2020 | B18: 0.01043576984 | C18: 0.008584394455 | D18: 0.008848336888 | E18: 0.005101977658 | F18: 2020 | G18: 0.01059542786 | H18: 0.01018387116 | I18: 0.01006968265 | J18: 0.007693473366 | K18: 2020 | L18: 0.01146844257 | M18: 0.01151895441 | N18: 0.01123390046 | O18: 0.008512485255 | P18: 2020 | Q18: 0.01427035003 | R18: 0.008625938698 | S18: 0.009116377158 | T18: 0.004960703652 | U18: 2020 | V18: 0.01297396723 | W18: 0.01190148392 | X18: 0.01107902696 | Y18: 0.009633989131 | Z18: 2020 | AA18: 0.01268657541 | AB18: 0.01431474512 | AC18: 0.01239169271 | AD18: 0.009862197131 | AE18: 2020 | AF18: 0.009610122886 | AG18: 0.01584702027 | AH18: 0.01171788915 | AI18: 0.00393183
A19: 2021 | B19: 0.01020948116 | C19: 0.009123799472 | D19: 0.009286691014 | E19: 0.006193343307 | F19: 2021 | G19: 0.01028594223 | H19: 0.01010712763 | I19: 0.01003747392 | J19: 0.008192931126 | K19: 2021 | L19: 0.01119772301 | M19: 0.01126319341 | N19: 0.01102710101 | O19: 0.008583362061 | P19: 2021 | Q19: 0.01381495994 | R19: 0.008608936252 | S19: 0.009066737698 | T19: 0.005031012959 | U19: 2021 | V19: 0.01255832499 | W19: 0.01157518671 | X19: 0.01082071122 | Y19: 0.009503267523 | Z19: 2021 | AA19: 0.01228713412 | AB19: 0.01379548306 | AC19: 0.01205244356 | AD19: 0.0096138931 | AE19: 2021 | AF19: 0.009527556013 | AG19: 0.01541824643 | AH19: 0.01154925546 | AI19: 0.00377523879
A20: 2022 | B20: 0.01005632171 | C20: 0.009575056472 | D20: 0.009653863346 | E20: 0.007304378252 | F20: 2022 | G20: 0.01007681247 | H20: 0.01004925677 | I20: 0.01001588949 | J20: 0.00871207479 | K20: 2022 | L20: 0.01093392058 | M20: 0.01101539126 | N20: 0.01082631481 | O20: 0.008700820873 | P20: 2022 | Q20: 0.01335378256 | R20: 0.008638944252 | S20: 0.009058780795 | T20: 0.005201131622 | U20: 2022 | V20: 0.01217011712 | W20: 0.01128733325 | X20: 0.01060585396 | Y20: 0.009414808713 | Z20: 2022 | AA20: 0.01192013154 | AB20: 0.01329802531 | AC20: 0.01174049331 | AD20: 0.009432821301 | AE20: 2022 | AF20: 0.00948517442 | AG20: 0.01493769138 | AH20: 0.01137802868 | AI20: 0.003801025349
A21: 2023 | B21: 0.01 | C21: 0.00988488385 | D21: 0.009906188227 | E21: 0.008337821943 | F21: 2023 | G21: 0.01 | H21: 0.01001272532 | I21: 0.01000378097 | J21: 0.009201628933 | K21: 2023 | L21: 0.01068602875 | M21: 0.01078145719 | N21: 0.01063643255 | O21: 0.008853624475 | P21: 2023 | Q21: 0.01289416452 | R21: 0.00870863892 | S21: 0.009086422556 | T21: 0.005456661827 | U21: 2023 | V21: 0.01181035587 | W21: 0.01103563864 | X21: 0.01043056143 | Y21: 0.009363944879 | Z21: 2023 | AA21: 0.01158548356 | AB21: 0.01282503872 | AC21: 0.01145549469 | AD21: 0.009311915303 | AE21: 2023 | AF21: 0.009477134729 | AG21: 0.01441872848 | AH21: 0.01120662352 | AI21: 0.003985418778
A22: 2024 | B22: 0.01 | C22: 0.01 | D22: 0.01 | E22: 0.009196413831 | F22: 2024 | G22: 0.01 | H22: 0.01 | I22: 0.01 | J22: 0.009612318132 | K22: 2024 | L22: 0.01046304098 | M22: 0.01056730044 | N22: 0.0104623449 | O22: 0.009030535653 | P22: 2024 | Q22: 0.01244345241 | R22: 0.008810696479 | S22: 0.009143579085 | T22: 0.005783205762 | U22: 2024 | V22: 0.01148005348 | W22: 0.01081781798 | X22: 0.01029093987 | Y22: 0.009346008202 | Z22: 2024 | AA22: 0.01128310606 | AB22: 0.01237919013 | AC22: 0.01119710044 | AD22: 0.009244108678 | AE22: 2024 | AF22: 0.009497593567 | AG22: 0.01387473109 | AH22: 0.01103745467 | AI22: 0.004304648179
A23: 2025 | B23: 0.01 | C23: 0.01 | D23: 0.01 | E23: 0.009782893366 | F23: 2025 | G23: 0.01 | H23: 0.01 | I23: 0.01 | J23: 0.009894866962 | K23: 2025 | L23: 0.01027395076 | M23: 0.01037883026 | N23: 0.01030894257 | O23: 0.009220317192 | P23: 2025 | Q23: 0.01200899284 | R23: 0.008937793151 | S23: 0.00922416649 | T23: 0.006166365614 | U23: 2025 | V23: 0.01118022219 | W23: 0.01063158638 | X23: 0.01018309552 | Y23: 0.009356330863 | Z23: 2025 | AA23: 0.01101291491 | AB23: 0.01196314639 | AC23: 0.01096496329 | AD23: 0.009222334997 | AE23: 2025 | AF23: 0.009540707559 | AG23: 0.01331907257 | AH23: 0.01087293686 | AI23: 0.004734942654
A25: Improvement rates for various scales, Female | L25: 21 | M25: 4 | N25: 7 | O25: 30 | P25: 40 | Q25: 50 | R25: 60 | S25: 70 | T25: 80 | U25: 90
A26: Age 30 | B26: MI2017 | C26: MIH6U3 | D26: MIO6U3 | E26: MIO8U3 | F26: Age 40 | G26: MI2017 | H26: MIH6U3 | I26: MIO6U3 | J26: MIO8U3 | K26: Age 50 | L26: MI2017 | M26: MIH6U3 | N26: MIO6U3 | O26: MIO8U3 | P26: Age 60 | Q26: MI2017 | R26: MIH6U3 | S26: MIO6U3 | T26: MIO8U3 | U26: Age 70 | V26: MI2017 | W26: MIH6U3 | X26: MIO6U3 | Y26: MIO8U3 | Z26: Age 80 | AA26: MI2017 | AB26: MIH6U3 | AC26: MIO6U3 | AD26: MIO8U3 | AE26: Age 90 | AF26: MI2017 | AG26: MIH6U3 | AH26: MIO6U3 | AI26: MIO8U3
A27: 2005 | B27: 0.01268613183 | C27: 0.009993809825 | D27: 0.0102709982 | E27: 0.008782434465 | F27: 2005 | G27: 0.01284311801 | H27: 0.01203509413 | I27: 0.01186583857 | J27: 0.01091067617 | K27: 2005 | L27: 0.01247370325 | M27: 0.01242179582 | N27: 0.01220887434 | O27: 0.0118424489 | P27: 2005 | Q27: 0.0174576137 | R27: 0.0169226204 | S27: 0.01695359496 | T27: 0.01686451164 | U27: 2005 | V27: 0.01930109375 | W27: 0.01928076314 | X27: 0.01924848558 | Y27: 0.0193053985 | Z27: 2005 | AA27: 0.02179241184 | AB27: 0.02095018139 | AC27: 0.01948381716 | AD27: 0.01960536301 | AE27: 2005 | AF27: 0.0135793816 | AG27: 0.01395375475 | AH27: 0.01282015048 | AI27: 0.01307431273
A28: 2006 | B28: 0.0125068276 | C28: 0.009457713298 | D28: 0.009782441546 | E28: 0.008058546728 | F28: 2006 | G28: 0.01282129441 | H28: 0.01191725474 | I28: 0.01171205524 | J28: 0.01054404095 | K28: 2006 | L28: 0.01245002683 | M28: 0.01241646877 | N28: 0.01215462078 | O28: 0.01161824 | P28: 2006 | Q28: 0.01749221311 | R28: 0.0165247943 | S28: 0.01657128066 | T28: 0.01633940081 | U28: 2006 | V28: 0.01939792761 | W28: 0.01934281624 | X28: 0.01909582587 | Y28: 0.01908973181 | Z28: 2006 | AA28: 0.02175980629 | AB28: 0.02146004087 | AC28: 0.01963074735 | AD28: 0.01975041053 | AE28: 2006 | AF28: 0.01428467499 | AG28: 0.01504251233 | AH28: 0.01367296085 | AI28: 0.01394074668
A29: 2007 | B29: 0.01235954875 | C29: 0.008937124114 | D29: 0.009313117157 | E29: 0.007338904197 | F29: 2007 | G29: 0.01282221485 | H29: 0.01181175909 | I29: 0.01156911449 | J29: 0.01016840323 | K29: 2007 | L29: 0.01250944176 | M29: 0.01251444082 | N29: 0.01219644546 | O29: 0.01145804189 | P29: 2007 | Q29: 0.01739304654 | R29: 0.01589305277 | S29: 0.01596311101 | T29: 0.01554394032 | U29: 2007 | V29: 0.01936634946 | W29: 0.01927526022 | X29: 0.0188213467 | Y29: 0.01871958182 | Z29: 2007 | AA29: 0.02122136391 | AB29: 0.02155798024 | AC29: 0.01938676032 | AD29: 0.01948694817 | AE29: 2007 | AF29: 0.01442358141 | AG29: 0.01566269872 | AH29: 0.01398202595 | AI29: 0.01423904581
A30: 2008 | B30: 0.01224309787 | C30: 0.008438537541 | D30: 0.008868512359 | E30: 0.006631451582 | F30: 2008 | G30: 0.01284101318 | H30: 0.01171190363 | I30: 0.01143195979 | J30: 0.009781365963 | K30: 2008 | L30: 0.01264153546 | M30: 0.01269768622 | N30: 0.01231755174 | O30: 0.0113452124 | P30: 2008 | Q30: 0.0173424493 | R30: 0.01516888324 | S30: 0.01527359052 | T30: 0.01461023853 | U30: 2008 | V30: 0.01925586778 | W30: 0.0191378836 | X30: 0.01846775784 | Y30: 0.0182304374 | Z30: 2008 | AA30: 0.0204253073 | AB30: 0.02138869679 | AC30: 0.01892020827 | AD30: 0.01896673082 | AE30: 2008 | AF30: 0.01434787869 | AG30: 0.01605987996 | AH30: 0.01410105405 | AI30: 0.01428884339
A31: 2009 | B31: 0.01218494889 | C31: 0.008000448822 | D31: 0.00848601544 | E31: 0.005975947773 | F31: 2009 | G31: 0.01291458641 | H31: 0.01165334097 | I31: 0.01133912047 | J31: 0.00942391321 | K31: 2009 | L31: 0.01279247385 | M31: 0.01291302463 | N31: 0.0124674921 | O31: 0.01123209525 | P31: 2009 | Q31: 0.01729675475 | R31: 0.01436805036 | S31: 0.01451978538 | T31: 0.01354902911 | U31: 2009 | V31: 0.01896310772 | W31: 0.01875013123 | X31: 0.01791949703 | Y31: 0.01750616575 | Z31: 2009 | AA31: 0.01960869238 | AB31: 0.02106953003 | AC31: 0.01839905282 | AD31: 0.01833963663 | AE31: 2009 | AF31: 0.01402135503 | AG31: 0.0162772416 | AH31: 0.01397900269 | AI31: 0.01401361038
A32: 2010 | B32: 0.0121422287 | C32: 0.007588612571 | D32: 0.008128898808 | E32: 0.005341566252 | F32: 2010 | G32: 0.01296223577 | H32: 0.01155741388 | I32: 0.01121404401 | J32: 0.009027165483 | K32: 2010 | L32: 0.01288281894 | M32: 0.01307358002 | N32: 0.01256423572 | O32: 0.01104255927 | P32: 2010 | Q32: 0.01719905875 | R32: 0.01344435433 | S32: 0.0136561308 | T32: 0.01231423201 | U32: 2010 | V32: 0.01838732085 | W32: 0.01805024824 | X32: 0.01707301248 | Y32: 0.01644426685 | Z32: 2010 | AA32: 0.01873803659 | AB32: 0.02052325062 | AC32: 0.01775167003 | AD32: 0.0175232402 | AE32: 2010 | AF32: 0.01343269081 | AG32: 0.01622815691 | AH32: 0.01359778956 | AI32: 0.01336300955
A33: 2011 | B33: 0.01211624041 | C33: 0.007221199429 | D33: 0.007812840164 | E33: 0.004749533937 | F33: 2011 | G33: 0.01298196614 | H33: 0.01142587359 | I33: 0.0110621986 | J33: 0.008603224402 | K33: 2011 | L33: 0.01286081182 | M33: 0.01311684539 | N33: 0.01255377129 | O33: 0.01073033078 | P33: 2011 | Q33: 0.01708575345 | R33: 0.01247792515 | S33: 0.0127648854 | T33: 0.01098900507 | U33: 2011 | V33: 0.01774819646 | W33: 0.01721522256 | X33: 0.01614847937 | Y33: 0.01525821176 | Z33: 2011 | AA33: 0.01781282944 | AB33: 0.01979075032 | AC33: 0.01695837209 | AD33: 0.01648567635 | AE33: 2011 | AF33: 0.01297980752 | AG33: 0.01631743272 | AH33: 0.01335272373 | AI33: 0.01268076791
A34: 2012 | B34: 0.01209593011 | C34: 0.006907535042 | D34: 0.007542828361 | E34: 0.004212306334 | F34: 2012 | G34: 0.01293174461 | H34: 0.01122545243 | I34: 0.01085362332 | J34: 0.008131794425 | K34: 2012 | L34: 0.01283801364 | M34: 0.01312474173 | N34: 0.01253148899 | O34: 0.01039730859 | P34: 2012 | Q34: 0.01685704101 | R34: 0.01143858864 | S34: 0.0118148563 | T34: 0.00955487416 | U34: 2012 | V34: 0.01715577468 | W34: 0.01631799554 | X34: 0.01526234925 | Y34: 0.01406588983 | Z34: 2012 | AA34: 0.0170434241 | AB34: 0.01905163505 | AC34: 0.01623012853 | AD34: 0.01542103012 | AE34: 2012 | AF34: 0.01237409286 | AG34: 0.01635562036 | AH34: 0.01296780076 | AI34: 0.01165989533
A35: 2013 | B35: 0.01207589339 | C35: 0.006664777958 | D35: 0.007330166415 | E35: 0.003750237701 | F35: 2013 | G35: 0.01288702951 | H35: 0.01104191285 | I35: 0.01067956565 | J35: 0.007711909162 | K35: 2013 | L35: 0.01280170771 | M35: 0.01305344045 | N35: 0.01245397588 | O35: 0.0100159328 | P35: 2013 | Q35: 0.01667892235 | R35: 0.01062608654 | S35: 0.01109886318 | T35: 0.008317518834 | U35: 2013 | V35: 0.01656659752 | W35: 0.01542632162 | X35: 0.01439514448 | Y35: 0.01285923394 | Z35: 2013 | AA35: 0.01639801461 | AB35: 0.01833496189 | AC35: 0.01554505326 | AD35: 0.01430677702 | AE35: 2013 | AF35: 0.01180412229 | AG35: 0.01635012698 | AH35: 0.01263303314 | AI35: 0.01044999116
A36: 2014 | B36: 0.01200153863 | C36: 0.006480625987 | D36: 0.007168671224 | E36: 0.003363580383 | F36: 2014 | G36: 0.01276997344 | H36: 0.01090252096 | I36: 0.01055035493 | J36: 0.007359774146 | K36: 2014 | L36: 0.01273438538 | M36: 0.01288973853 | N36: 0.012327097 | O36: 0.009600919936 | P36: 2014 | Q36: 0.01646974807 | R36: 0.01012530428 | S36: 0.01063024568 | T36: 0.007310649768 | U36: 2014 | V36: 0.01598725731 | W36: 0.01479454068 | X36: 0.01375960036 | Y36: 0.01185977887 | Z36: 2014 | AA36: 0.01576914693 | AB36: 0.01773886495 | AC36: 0.0150199112 | AD36: 0.01326982594 | AE36: 2014 | AF36: 0.01127664397 | AG36: 0.01658334951 | AH36: 0.01254001251 | AI36: 0.009225871219
A37: 2015 | B37: 0.01183435347 | C37: 0.006455815034 | D37: 0.007138166408 | E37: 0.00307511196 | F37: 2015 | G37: 0.0125295431 | H37: 0.0107614335 | I37: 0.01042938889 | J37: 0.007074868884 | K37: 2015 | L37: 0.0126110259 | M37: 0.01270646291 | N37: 0.01218377363 | O37: 0.009196876904 | P37: 2015 | Q37: 0.01620336029 | R37: 0.009674843956 | S37: 0.0102046045 | T37: 0.006521922061 | U37: 2015 | V37: 0.0154282658 | W37: 0.01418906711 | X37: 0.01315904814 | Y37: 0.01105133388 | Z37: 2015 | AA37: 0.01517330682 | AB37: 0.01714180848 | AC37: 0.01450833959 | AD37: 0.01230706585 | AE37: 2015 | AF37: 0.01083025455 | AG37: 0.0167398787 | AH37: 0.01243615834 | AI37: 0.008127856047
A38: 2016 | B38: 0.01159804643 | C38: 0.006701970803 | D38: 0.007330596449 | E38: 0.002878419004 | F38: 2016 | G38: 0.01219769992 | H38: 0.01061997558 | I38: 0.01032457098 | J38: 0.006878009846 | K38: 2016 | L38: 0.01244062273 | M38: 0.01248912394 | N38: 0.01201175647 | O38: 0.008919542374 | P38: 2016 | Q38: 0.01588710562 | R38: 0.009319624831 | S38: 0.009860458615 | T38: 0.005965516241 | U38: 2016 | V38: 0.01489063524 | W38: 0.01363480006 | X38: 0.01262582272 | Y38: 0.01067285992 | Z38: 2016 | AA38: 0.01461041014 | AB38: 0.01654525423 | AC38: 0.01402394512 | AD38: 0.01166906415 | AE38: 2016 | AF38: 0.01045911066 | AG38: 0.01675328387 | AH38: 0.01231256897 | AI38: 0.006857390474
A39: 2017 | B39: 0.01131632603 | C39: 0.007147520326 | D39: 0.007687392504 | E39: 0.003128399803 | F39: 2017 | G39: 0.01180640536 | H39: 0.01048267818 | I39: 0.01023538937 | J39: 0.006906316947 | K39: 2017 | L39: 0.01223216934 | M39: 0.01224534769 | N39: 0.01181733828 | O39: 0.008707763335 | P39: 2017 | Q39: 0.01552833065 | R39: 0.009051542876 | S39: 0.009591121996 | T39: 0.005512882733 | U39: 2017 | V39: 0.01437537786 | W39: 0.01312962718 | X39: 0.01215593854 | Y39: 0.01033089191 | Z39: 2017 | AA39: 0.01408037278 | AB39: 0.01595283411 | AC39: 0.01356678213 | AD39: 0.01108726738 | AE39: 2017 | AF39: 0.01015736892 | AG39: 0.01663895904 | AH39: 0.01217214214 | AI39: 0.005763338306
A40: 2018 | B40: 0.01101290079 | C40: 0.007720890632 | D40: 0.008149985732 | E40: 0.00408957053 | F40: 2018 | G40: 0.01138762087 | H40: 0.01035407229 | I40: 0.01016133224 | J40: 0.007296070101 | K40: 2018 | L40: 0.01199465921 | M40: 0.0119827602 | N40: 0.01160681182 | O40: 0.008614389424 | P40: 2018 | Q40: 0.01513438199 | R40: 0.008862494063 | S40: 0.009389908621 | T40: 0.005253523247 | U40: 2018 | V40: 0.01388350591 | W40: 0.01267143614 | X40: 0.01174541007 | Y40: 0.01005779305 | Z40: 2018 | AA40: 0.01358311062 | AB40: 0.01536818005 | AC40: 0.01313690497 | AD40: 0.01061176778 | AE40: 2018 | AF40: 0.009919185966 | AG40: 0.01641229824 | AH40: 0.01201777565 | AI40: 0.004999411431
A41: 2019 | B41: 0.01071147922 | C41: 0.008350508753 | D41: 0.00865980729 | E41: 0.00548869481 | F41: 2019 | G41: 0.01097330788 | H41: 0.0102386889 | I41: 0.01010188777 | J41: 0.007913939975 | K41: 2019 | L41: 0.0117370858 | M41: 0.01170898753 | N41: 0.01138646986 | O41: 0.008620361858 | P41: 2019 | Q41: 0.01471260626 | R41: 0.008744374364 | S41: 0.009250132463 | T41: 0.005166031882 | U41: 2019 | V41: 0.01341603162 | W41: 0.01225811461 | X41: 0.01139025177 | Y41: 0.009847349223 | Z41: 2019 | AA41: 0.01311853954 | AB41: 0.01479492395 | AC41: 0.01273436798 | AD41: 0.01023339634 | AE41: 2019 | AF41: 0.009738718411 | AG41: 0.01608869547 | AH41: 0.01185236724 | AI41: 0.004531557581
A42: 2020 | B42: 0.01043576984 | C42: 0.00896480172 | D42: 0.009158288338 | E42: 0.00705253627 | F42: 2020 | G42: 0.01059542786 | H42: 0.01014105899 | I42: 0.01005654414 | J42: 0.008626597236 | K42: 2020 | L42: 0.01146844257 | M42: 0.01143165574 | N42: 0.01116260514 | O42: 0.008706621853 | P42: 2020 | Q42: 0.01427035003 | R42: 0.008689079751 | S42: 0.009165107498 | T42: 0.005229002734 | U42: 2020 | V42: 0.01297396723 | W42: 0.01188755022 | X42: 0.01108647809 | Y42: 0.00969334629 | Z42: 2020 | AA42: 0.01268657541 | AB42: 0.01423669775 | AC42: 0.0123592255 | AD42: 0.009942984025 | AE42: 2020 | AF42: 0.009610122886 | AG42: 0.01568354475 | AH42: 0.0116788147 | AI42: 0.004325724485
A43: 2021 | B43: 0.01020948116 | C43: 0.009492196563 | D43: 0.009586860034 | E43: 0.008507858538 | F43: 2021 | G43: 0.01028594223 | H43: 0.01006571354 | I43: 0.01002478951 | J43: 0.009300712549 | K43: 2021 | L43: 0.01119772301 | M43: 0.01115839089 | N43: 0.01094151045 | O43: 0.008854110625 | P43: 2021 | Q43: 0.01381495994 | R43: 0.008688506197 | S43: 0.0091281477 | T43: 0.005421029901 | U43: 2021 | V43: 0.01255832499 | W43: 0.01155763066 | X43: 0.01083010349 | Y43: 0.009589570121 | Z43: 2021 | AA43: 0.01228713412 | AB43: 0.01369713336 | AC43: 0.01201153188 | AD43: 0.009731361821 | AE43: 2021 | AF43: 0.009527556013 | AG43: 0.0152122401 | AH43: 0.01150001579 | AI43: 0.004347859873
A44: 2022 | B44: 0.01005632171 | C44: 0.009861120312 | D44: 0.009886953535 | E44: 0.009581425239 | F44: 2022 | G44: 0.01007681247 | H44: 0.01001718355 | I44: 0.01000611207 | J44: 0.009802956582 | K44: 2022 | L44: 0.01093392058 | M44: 0.01089681904 | N44: 0.01072947853 | O44: 0.009043769391 | P44: 2022 | Q44: 0.01335378256 | R44: 0.008734549674 | S44: 0.009132567045 | T44: 0.005720707482 | U44: 2022 | V44: 0.01217011712 | W44: 0.01126624358 | X44: 0.01061714244 | Y44: 0.009529806585 | Z44: 2022 | AA44: 0.01192013154 | AB44: 0.01317986269 | AC44: 0.01169134146 | AD44: 0.009589360705 | AE44: 2022 | AF44: 0.00948517442 | AG44: 0.01469017554 | AH44: 0.01131886827 | AI44: 0.004563911476
A45: 2023 | B45: 0.01 | C45: 0.01 | D45: 0.01 | E45: 0.01 | F45: 2023 | G45: 0.01 | H45: 0.01 | I45: 0.01 | J45: 0.01 | K45: 2023 | L45: 0.01068602875 | M45: 0.01065456624 | N45: 0.01053280215 | O45: 0.009256539369 | P45: 2023 | Q45: 0.01289416452 | R45: 0.008819106154 | S45: 0.009171679506 | T45: 0.006106629572 | U45: 2023 | V45: 0.01181035587 | W45: 0.01101127663 | X45: 0.01044360939 | Y45: 0.009507841551 | Z45: 2023 | AA45: 0.01158548356 | AB45: 0.01268851767 | AC45: 0.01139870858 | AD45: 0.009507811654 | AE45: 2023 | AF45: 0.009477134729 | AG45: 0.01413274508 | AH45: 0.01113826993 | AI45: 0.004939827022
A46: 2024 | B46: 0.01 | C46: 0.01 | D46: 0.01 | E46: 0.01 | F46: 2024 | G46: 0.01 | H46: 0.01 | I46: 0.01 | J46: 0.01 | K46: 2024 | L46: 0.01046304098 | M46: 0.01043925854 | N46: 0.01035777408 | O46: 0.009473361774 | P46: 2024 | Q46: 0.01244345241 | R46: 0.008934071609 | S46: 0.00923879906 | T46: 0.00655739027 | U46: 2024 | V46: 0.01148005348 | W46: 0.01079061748 | X46: 0.01030551881 | Y46: 0.009517460887 | Z46: 2024 | AA46: 0.01128310606 | AB46: 0.01222673021 | AC46: 0.01113368758 | AD46: 0.009477545647 | AE46: 2024 | AF46: 0.009497593567 | AG46: 0.01355534275 | AH46: 0.01096111853 | AI46: 0.005441554242
A47: 2025 | B47: 0.01 | C47: 0.01 | D47: 0.01 | E47: 0.01 | F47: 2025 | G47: 0.01 | H47: 0.01 | I47: 0.01 | J47: 0.01 | K47: 2025 | L47: 0.01027395076 | M47: 0.01025852202 | N47: 0.01021068706 | O47: 0.009675177823 | P47: 2025 | Q47: 0.01200899284 | R47: 0.009071342012 | S47: 0.009327239679 | T47: 0.007051583674 | U47: 2025 | V47: 0.01118022219 | W47: 0.01060215379 | X47: 0.01019888514 | Y47: 0.009552450464 | Z47: 2025 | AA47: 0.01101291491 | AB47: 0.01179813223 | AC47: 0.01089633281 | AD47: 0.009489393663 | AE47: 2025 | AF47: 0.009540707559 | AG47: 0.01297336255 | AH47: 0.01079031183 | AI47: 0.006035040866

Sheet Annuities
A1: Monthly annuities at 4% on GAC2012 as of start of 2020 | J1: ="Change in " &A1 -> Change in Monthly annuities at 4% on GAC2012 as of start of 2020
B2: MI2017 | C2: MIH6U4 | D2: MIO6U4 | E2: MIO8U6 | F2: MIH6U3 | G2: MIO6U3 | H2: MIO8U3 | K2: =C2 -> MIH6U4 | L2: =D2 -> MIO6U4 | M2: MIO8U6 | N2: MIH6U3 | O2: MIO6U3 | P2: MIO8U3
A3: M50 | B3: 18.67443542 | C3: 18.67184075 | D3: 18.61413284 | E3: 18.50311386 | F3: 18.66609461 | G3: 18.61119129 | H3: 18.51165356 | J3: =A3 -> M50 | K3: =(C3-$B3)/$B3 -> -0.0001389421587 | L3: =(D3-$B3)/$B3 -> -0.003229151325 | M3: -0.009174122263 | N3: -0.0004466430111 | O3: -0.003386668746 | P3: -0.008716828926
A4: M60 | B4: 15.7646128 | C4: 15.79663163 | D4: 15.70852653 | E4: 15.56793109 | F4: 15.78807871 | G4: 15.70391829 | H4: 15.57466887 | J4: =A4 -> M60 | K4: =(C4-$B4)/$B4 -> 0.002031057211 | L4: =(D4-$B4)/$B4 -> -0.00355773245 | M4: =(E4-$B4)/$B4 -> -0.01247615256 | N4: =(F4-$B4)/$B4 -> 0.001488517625 | O4: =(G4-$B4)/$B4 -> -0.003850047562 | P4: =(H4-$B4)/$B4 -> -0.01204875323
A5: M70 | B5: 12.09361142 | C5: 12.21209343 | D5: 12.10375046 | E5: 11.94445885 | F5: 12.20124613 | G5: 12.09728565 | H5: 11.94885584 | J5: M70 | K5: 0.00979707409 | L5: 0.000838379952 | M5: -0.01233317061 | N5: 0.008900129477 | O5: 0.0003038160293 | P5: -0.01196959028
A6: M80 | B6: 7.955609785 | C6: 8.115133235 | D6: 7.973788711 | E6: 7.82784757 | F6: 8.10704068 | G6: 7.97066601 | H6: 7.835093615 | J6: M80 | K6: 0.02005169364 | L6: 0.002285044899 | M6: -0.01605938688 | N6: 0.01903447994 | O6: 0.001892529382 | P6: -0.01514857729
A7: M90 | B7: 4.177359081 | C7: 4.305724156 | D7: 4.183070258 | E7: 4.082094059 | F7: 4.302441548 | G7: 4.182197731 | H7: 4.085541197 | J7: M90 | K7: 0.03072876244 | L7: 0.001367174004 | M7: -0.02280508338 | N7: 0.02994295296 | O7: 0.001158303608 | P7: -0.02197988788
A8: F50 | B8: 19.50256233 | C8: 19.52484174 | D8: 19.47538117 | E8: 19.37383406 | F8: 19.52225891 | G8: 19.47513371 | H8: 19.38795664 | J8: F50 | K8: 0.00114238407 | L8: -0.001393722174 | M8: -0.006600582196 | N8: 0.001009948791 | O8: -0.001406411039 | P8: -0.005876442294
A9: F60 | B9: 16.82728143 | C9: 16.88112527 | D9: 16.80344516 | E9: 16.67546605 | F9: 16.87664495 | G9: 16.80266591 | H9: 16.6911889 | J9: F60 | K9: 0.003199794502 | L9: -0.001416525471 | M9: -0.009021978788 | N9: 0.002933540945 | O9: -0.001462834004 | P9: -0.008087612235
A10: F70 | B10: 13.25351021 | C10: 13.38934695 | D10: 13.27021926 | E10: 13.1142851 | F10: 13.38213681 | G10: 13.26824846 | H10: 13.13262214 | J10: F70 | K10: 0.0102491137 | L10: 0.001260726182 | M10: -0.01050477319 | N10: 0.009705096789 | O10: 0.001112026011 | P10: -0.009121211774
A11: F80 | B11: 9.022076838 | C11: 9.24149813 | D11: 9.086657546 | E11: 8.889747868 | F11: 9.23337017 | G11: 9.084112795 | H11: 8.908843583 | J11: =A11 -> F80 | K11: =(C11-$B11)/$B11 -> 0.02432048582 | L11: =(D11-$B11)/$B11 -> 0.007158075597 | M11: =(E11-$B11)/$B11 -> -0.01466724041 | N11: =(F11-$B11)/$B11 -> 0.02341958902 | O11: =(G11-$B11)/$B11 -> 0.006876017411 | P11: =(H11-$B11)/$B11 -> -0.01255068615
A12: F90 | B12: 4.941819843 | C12: 5.107134466 | D12: 4.999569891 | E12: 4.833498672 | F12: 5.10313181 | G12: 4.997990108 | H12: 4.840030143 | J12: F90 | K12: 0.03345217518 | L12: 0.01168598813 | M12: -0.0219192878 | N12: 0.03264221937 | O12: 0.01136631185 | P12: -0.02059761441
J14: =J1 -> Change in Monthly annuities at 4% on GAC2012 as of start of 2020
K15: =K2 -> MIH6U4 | L15: =L2 -> MIO6U4 | M15: MIO8U6
J16: =J3 -> M50 | K16: -0.0001389421587 | L16: -0.003229151325 | M16: -0.009174122263
J17: =J4 -> M60 | K17: =K4 -> 0.002031057211 | L17: -0.00355773245 | M17: -0.01247615256
J18: =J5 -> M70 | K18: =K5 -> 0.00979707409 | L18: 0.000838379952 | M18: -0.01233317061
J19: =J6 -> M80 | K19: =K6 -> 0.02005169364 | L19: 0.002285044899 | M19: -0.01605938688
J20: =J7 -> M90 | K20: =K7 -> 0.03072876244 | L20: 0.001367174004 | M20: -0.02280508338
J21: =J8 -> F50 | K21: =K8 -> 0.00114238407 | L21: -0.001393722174 | M21: -0.006600582196
J22: =J9 -> F60 | K22: =K9 -> 0.003199794502 | L22: -0.001416525471 | M22: -0.009021978788
J23: =J10 -> F70 | K23: 0.0102491137 | L23: 0.001260726182 | M23: -0.01050477319
J24: =J11 -> F80 | K24: 0.02432048582 | L24: 0.007158075597 | M24: -0.01466724041
J25: F90 | K25: 0.03345217518 | L25: 0.01168598813 | M25: -0.0219192878

Sheet PVal
A1: Present value of portfolio at 4% on GAC2012 as of start of 2020
A2: Scale | B2: Value | C2: Change
A3: MI2017 | B3: 21.56001835
A4: MIH6U4 | B4: 21.8584617 | C4: =(B4-B$3)/B$3 -> 0.01384244416
A5: MIO6U4 | B5: 21.59473269 | C5: =(B5-B$3)/B$3 -> 0.001610125433
A6: MIO8U6 | B6: 21.26744979 | C6: -0.01356995905
A7: MIH6U3 | B7: 21.84231835 | C7: 0.01309368078
A8: MIO6U3 | B8: 21.58790566 | C8: 0.001293473201
A9: MIO8U3 | B9: 21.28805174 | C9: -0.01261439614

Sheet AgeAdjd
A1: Age-adjusted central death rates, using 2016 OAS exposure for ages 70-90.
B2: Raw central death rates | F2: Raw improvement rates | J2: Graduated central death rates | N2: Improvement of graduated rates | U2: 3
B3: OAS | D3: HMD | F3: OAS | H3: HMD | J3: OAS | L3: HMD | N3: OAS | P3: HMD | U3: 20
B4: OAS M | C4: OAS F | D4: HMD M | E4: HMD F | F4: OAS M | G4: OAS F | H4: HMD M | I4: HMD F | J4: OAS M | K4: OAS F | L4: HMD M | M4: HMD F | N4: OAS M | O4: OAS F | P4: HMD M | Q4: HMD F
A5: 1995 | B5: 0 | C5: 0 | D5: 0.07190018981 | E5: 0.04815275876 | L5: =[1]!GradRange(D5:D26,U5:U26,Order,Balance) -> 0.0718828173 | M5: =[1]!GradRange(E5:E26,U5:U26,Order,Balance) -> 0.04822080998 | U5: 0.999999999
A6: 1996 | B6: 0 | C6: 0 | D6: 0.07081195497 | E6: 0.04774015597 | H6: =1-D6/D5 -> 0.0151353542 | I6: =1-E6/E5 -> 0.008568622034 | L6: 0.07127990403 | M6: 0.04792309919 | P6: =1-L6/L5 -> 0.008387446279 | Q6: =1-M6/M5 -> 0.006173906753 | U6: 0.999999999
A7: 1997 | B7: 0 | C7: 0 | D7: 0.07015873093 | E7: 0.04776283804 | H7: 0.009224770525 | I7: -0.0004751151497 | L7: 0.07037525503 | M7: 0.04749800702 | P7: 0.01269150144 | Q7: 0.00887029795 | U7: 0.999999999
A8: 1998 | B8: 0 | C8: 0 | D8: 0.07006269168 | E8: 0.04727097341 | H8: 0.001368885267 | I8: 0.01029806107 | L8: 0.06916800166 | M8: 0.04694893603 | P8: 0.01715451498 | Q8: 0.01155987432 | U8: 0.999999999
A9: 1999 | B9: 0.06966660143 | C9: 0.04698759395 | D9: 0.06881208931 | E9: 0.04623718339 | H9: 0.01784976194 | I9: 0.02186944656 | J9: =[1]!GradRange(B9:B28,$U9:$U28,Order,Balance) -> 0.06903733402 | K9: =[1]!GradRange(C9:C28,$U9:$U28,Order,Balance) -> 0.04682395542 | L9: 0.06767893551 | M9: 0.04629524106 | P9: 0.02152825172 | Q9: 0.0139235311 | U9: 0.999999999
A10: 2000 | B10: 0.06628055797 | C10: 0.04593156575 | D10: 0.06517294122 | E10: 0.04533254433 | F10: =1-B10/B9 -> 0.04860354008 | G10: =1-C10/C9 -> 0.02247461748 | H10: 0.05288530146 | I10: 0.01956518529 | J10: 0.0670172243 | K10: 0.04609810406 | L10: 0.06598386339 | M10: 0.04557153741 | N10: =1-J10/J9 -> 0.02926112004 | O10: =1-K10/K9 -> 0.01550170968 | P10: 0.0250457858 | Q10: 0.01563235518 | U10: 0.999999999
A11: 2001 | B11: 0.06456331994 | C11: 0.04508929917 | D11: 0.06326328188 | E11: 0.04447127226 | F11: =1-B11/B10 -> 0.02590862359 | G11: =1-C11/C10 -> 0.01833742375 | H11: =1-D11/D10 -> 0.0293014142 | I11: =1-E11/E10 -> 0.01899897912 | J11: 0.06517565409 | K11: 0.04537736631 | L11: 0.06420222787 | M11: 0.04481090713 | N11: =1-J11/J10 -> 0.02747905828 | O11: 0.0156348674 | P11: 0.02700107909 | Q11: 0.01669090664 | U11: 0.999999999
A12: 2002 | B12: 0.0636891804 | C12: 0.0448755889 | D12: 0.0622788881 | E12: 0.0442560466 | F12: 0.01353925946 | G12: 0.004739711378 | H12: 0.01556027041 | I12: 0.004839656037 | J12: 0.06348116001 | K12: 0.04465356026 | L12: 0.06242907016 | M12: 0.04403100823 | N12: 0.02599888103 | O12: 0.01595081669 | P12: 0.02761832067 | Q12: 0.01740422039 | U12: 0.999999999
A13: 2003 | B13: 0.06280881221 | C13: 0.04397199614 | D13: 0.06134485387 | E13: 0.04322974123 | F13: 0.01382288468 | G13: 0.02013550776 | H13: 0.01499760607 | I13: 0.02319017283 | J13: 0.06187618527 | K13: 0.04391046704 | L13: 0.06070753898 | M13: 0.04323213348 | N13: 0.02528269389 | O13: 0.01664129847 | P13: 0.02757579391 | Q13: 0.01814345805 | U13: 0.999999999
A14: 2004 | B14: 0.06007477308 | C14: 0.04316138292 | D14: 0.05886955411 | E14: 0.04240881388 | F14: 0.04352954677 | G14: 0.01843476054 | H14: 0.04035056909 | I14: 0.01898987427 | J14: 0.06031306631 | K14: 0.04313837918 | L14: 0.05904834691 | M14: 0.04241225103 | N14: 0.02526204477 | O14: 0.01758323027 | P14: 0.02733090649 | Q14: 0.01896465397 | U14: 0.999999999
A15: 2005 | B15: 0.05894893866 | C15: 0.04270238037 | D15: 0.05767997835 | E15: 0.04203435041 | F15: 0.01874055225 | G15: 0.01063456536 | H15: 0.02020697755 | I15: 0.008829850124 | J15: 0.05877961842 | K15: 0.04233754757 | L15: 0.05745673566 | M15: 0.04157079305 | N15: 0.02542480407 | O15: 0.01856424908 | P15: 0.02695437444 | Q15: 0.01983997445 | U15: 0.999999999
A16: 2006 | B16: 0.05642542224 | C16: 0.04087412723 | D16: 0.05512341105 | E16: 0.04000862489 | F16: 0.04280851307 | G16: 0.04281384595 | H16: 0.04432330555 | I16: 0.04819214537 | J16: 0.05727809004 | K16: 0.04151855184 | L16: 0.05592757571 | M16: 0.04071256403 | N16: 0.02554505152 | O16: 0.01934443017 | P16: 0.02661411113 | Q16: 0.02064499992 | U16: 0.999999999
A17: 2007 | B17: 0.05605877138 | C17: 0.04084681017 | D17: 0.05481841674 | E17: 0.04003833726 | F17: 0.006497972908 | G17: 0.0006683216694 | H17: 0.005532935967 | I17: -0.0007426492611 | J17: 0.05581603171 | K17: 0.04070152069 | L17: 0.05444940557 | M17: 0.03985182089 | N17: 0.02552561243 | O17: 0.01967870055 | P17: 0.02643007711 | Q17: 0.02114195357 | U17: 0.999999999
A18: 2008 | B18: 0.05503610609 | C18: 0.0402786914 | D18: 0.05371405337 | E18: 0.03940643032 | F18: 0.01824273459 | G18: 0.0139085222 | H18: 0.0201458459 | I18: 0.01578254699 | J18: 0.05438869901 | K18: 0.03989711051 | L18: 0.05299730888 | M18: 0.03899317526 | N18: 0.02557209203 | O18: 0.01976363941 | P18: 0.02666873366 | Q18: 0.02154595724 | U18: 0.999999999
A19: 2009 | B19: 0.05301817304 | C19: 0.03894940877 | D19: 0.05163929994 | E19: 0.03803071676 | F19: 0.03666562179 | G19: 0.03300213052 | H19: 0.03862589578 | I19: 0.03491089026 | J19: 0.05300408887 | K19: 0.03911970524 | L19: 0.05156599974 | M19: 0.0381476927 | N19: 0.02545768082 | O19: 0.01948525252 | P19: 0.02700720413 | Q19: 0.02168283437 | U19: 0.999999999
A20: 2010 | B20: 0.05139275284 | C20: 0.03830722784 | D20: 0.04985004471 | E20: 0.03726273188 | F20: 0.0306577935 | G20: 0.01648756549 | H20: 0.03464909918 | I20: 0.02019380508 | J20: 0.05169583893 | K20: 0.03839335174 | L20: 0.05018445753 | M20: 0.0373396661 | N20: 0.02468205705 | O20: 0.01856745828 | P20: 0.02679172732 | Q20: 0.02118153274 | U20: 0.999999999
A21: 2011 | B21: 0.05034139723 | C21: 0.03776603612 | D21: 0.04878530186 | E21: 0.03660423618 | F21: 0.0204572736 | G21: 0.01412766612 | H21: 0.02135891462 | I21: 0.01767169687 | J21: 0.0505037565 | K21: 0.03773861618 | L21: 0.04889472447 | M21: 0.03659272633 | N21: 0.02305954312 | O21: 0.01705335774 | P21: 0.02569985059 | Q21: 0.02000392199 | U21: 0.999999999
A22: 2012 | B22: 0.04935559938 | C22: 0.03692225784 | D22: 0.04746090448 | E22: 0.03556648494 | F22: 0.01958225049 | G22: 0.02234225154 | H22: 0.02714746731 | I22: 0.02835057756 | J22: 0.04945364338 | K22: 0.03716795515 | L22: 0.04772703815 | M22: 0.0359218017 | N22: 0.02079277241 | O22: 0.01512140837 | P22: 0.02388164238 | Q22: 0.01833491773 | U22: 0.999999999
A23: 2013 | B23: 0.04840105934 | C23: 0.03669875959 | D23: 0.04647488219 | E23: 0.03532825982 | F23: 0.01934005577 | G23: 0.006053211961 | H23: 0.02077546337 | I23: 0.006698022707 | J23: 0.04855227493 | K23: 0.03668539308 | L23: 0.04669168474 | M23: 0.03532892412 | N23: 0.01822653284 | O23: 0.01298328291 | P23: 0.02169322579 | Q23: 0.01650467291 | U23: 0.999999999
A24: 2014 | B24: 0.04806443326 | C24: 0.03649195856 | D24: 0.0460980079 | E24: 0.03498741195 | F24: 0.006954932071 | G24: 0.005635095812 | H24: 0.008109203976 | I24: 0.009648023115 | J24: 0.04779049708 | K24: 0.03628482854 | L24: 0.04577632331 | M24: 0.03479845973 | N24: 0.01568984869 | O24: 0.01091891086 | P24: 0.01960437781 | Q24: 0.01501501684 | U24: 0.999999999
A25: 2015 | B25: 0.04750364725 | C25: 0.0363122387 | D25: 0.04536159415 | E25: 0.03462059953 | F25: 0.01166737994 | G25: 0.004924916802 | H25: 0.01597495821 | I25: 0.01048412561 | J25: 0.04715122564 | K25: 0.03596062554 | L25: 0.04495661686 | M25: 0.03431010545 | N25: 0.01337653888 | O25: 0.008934946442 | P25: 0.01790677779 | Q25: 0.0140337899 | U25: 0.999999999
A26: 2016 | B26: 0.04606003356 | C26: 0.03532901033 | D26: 0.04392046428 | E26: 0.03361306682 | F26: 0.0303895339 | G26: 0.02707705186 | H26: 0.03176982407 | I26: 0.02910211597 | J26: 0.04662500627 | K26: 0.03571753639 | L26: 0.04421770343 | M26: 0.03385191871 | N26: 0.01116024786 | O26: 0.006759869981 | P26: 0.01643614399 | Q26: 0.01335427981 | U26: 0.999999999
A27: 2017 | B27: 0.04658621329 | C27: 0.03546555932 | D27: 0 | E27: 0 | F27: =1-B27/B26 -> -0.01142378094 | G27: =1-C27/C26 -> -0.003865066814 | J27: 0.04621187775 | K27: 0.03557026811 | N27: 0.008860664162 | O27: 0.004123136574 | U27: 0.999999999
A28: 2018 | B28: 0.04578109399 | C28: 0.03565841796 | D28: 0 | E28: 0 | F28: 0.01728235111 | G28: -0.005437913383 | J28: 0.04590561407 | K28: 0.03552546819 | N28: 0.006627380184 | O28: 0.001259476583 | U28: 0.999999999

Sheet Grad mx
A1: Graduated Central Death Rates
A2: Age 70 | B2: OAS M | C2: OAS F | D2: HMD M | E2: HMD F | F2: Age 80 | G2: OAS M | H2: OAS F | I2: HMD M | J2: HMD F | K2: Age 90 | L2: OAS M | M2: OAS F | N2: HMD M | O2: HMD F
A3: 1999 | B3: 0.02814836337 | C3: 0.01487601311 | D3: 0.02659695165 | E3: 0.01413226387 | F3: 1999 | G3: 0.08249570011 | H3: 0.05010405238 | I3: 0.08157964333 | J3: 0.04948789019 | K3: 1999 | L3: 0.1931612957 | M3: 0.1487414339 | N3: 0.1987270775 | O3: 0.1518035894
A4: 2000 | B4: 0.02729876852 | C4: 0.01461796425 | D4: 0.02582171541 | E4: 0.01389636412 | F4: 2000 | G4: 0.08051164316 | H4: 0.04911699771 | I4: 0.07950620271 | J4: 0.04845361006 | K4: 2000 | L4: 0.1912763226 | M4: 0.1473174809 | N4: 0.196185657 | O4: 0.1500196868
A5: 2001 | B5: 0.02645601065 | C5: 0.01435997638 | D5: 0.0250527366 | E5: 0.01366022976 | F5: 2001 | G5: 0.07852961079 | H5: 0.04813231719 | I5: 0.07743514457 | J5: 0.0474207335 | K5: 2001 | L5: 0.189392575 | M5: 0.1458935912 | N5: 0.1936467326 | O5: 0.1482352621
A6: 2002 | B6: 0.02562453604 | C6: 0.01410133042 | D6: 0.02429386354 | E6: 0.01342238297 | F6: 2002 | G6: 0.07655855879 | H6: 0.04715414925 | I6: 0.07537508138 | J6: 0.04639263854 | K6: 2002 | L6: 0.1875122057 | M6: 0.1444696906 | N6: 0.1911115359 | O6: 0.1464488844
A7: 2003 | B7: 0.0248093282 | C7: 0.0138436867 | D7: 0.02354854094 | E7: 0.013183632 | F7: 2003 | G7: 0.07460739325 | H7: 0.04618398201 | I7: 0.0733345159 | J7: 0.04536948094 | K7: 2003 | L7: 0.1856336714 | M7: 0.1430453274 | N7: 0.1885767674 | O7: 0.1446578144
A8: 2004 | B8: 0.02401947841 | C8: 0.01358922343 | D8: 0.02282448524 | E8: 0.01294603524 | F8: 2004 | G8: 0.07268347251 | H8: 0.04522516238 | I8: 0.07131842848 | J8: 0.04435241255 | K8: 2004 | L8: 0.1837598124 | M8: 0.1416217307 | N8: 0.1860416983 | O8: 0.1428597045
A9: 2005 | B9: 0.02326502942 | C9: 0.01333998127 | D9: 0.02212934969 | E9: 0.0127112304 | F9: 2005 | G9: 0.07079646708 | H9: 0.0442815999 | I9: 0.06933326009 | J9: 0.04334292698 | K9: 2005 | L9: 0.1818949169 | M9: 0.1402001746 | N9: 0.1835067513 | O9: 0.141051066
A10: 2006 | B10: 0.02255213997 | C10: 0.0130989756 | D10: 0.02146705417 | E10: 0.01248166911 | F10: 2006 | G10: 0.06895471872 | H10: 0.04335861599 | I10: 0.06738422183 | J10: 0.04234402114 | K10: 2006 | L10: 0.180042772 | M10: 0.1387856741 | N10: 0.1809707667 | O10: 0.1392314661
A11: 2007 | B11: 0.02188584547 | C11: 0.01286817381 | D11: 0.02084054541 | E11: 0.01225886132 | F11: 2007 | G11: 0.06716576005 | H11: 0.04246292601 | I11: 0.06547607016 | J11: 0.041360758 | K11: 2007 | L11: 0.1782060181 | M11: 0.1373875544 | N11: 0.1784318624 | O11: 0.1374052367
A12: 2008 | B12: 0.02126952972 | C12: 0.01264897474 | D12: 0.02025094114 | E12: 0.01204344414 | F12: 2008 | G12: 0.06543447049 | H12: 0.04159890687 | I12: 0.06361010472 | J12: 0.04039619471 | K12: 2008 | L12: 0.1763888309 | M12: 0.1360114712 | N12: 0.1758896066 | O12: 0.1355744211
A13: 2009 | B13: 0.02070613399 | C13: 0.01244391452 | D13: 0.01969980371 | E13: 0.01183790931 | F13: 2009 | G13: 0.06376367274 | H13: 0.0407684677 | I13: 0.06178701576 | J13: 0.03945164345 | K13: 2009 | L13: 0.1745950834 | M13: 0.1346643073 | N13: 0.1733440279 | O13: 0.13374126
A14: 2010 | B14: 0.0201976773 | C14: 0.01225646291 | D14: 0.01918847833 | E14: 0.0116452197 | F14: 2010 | G14: 0.06215849304 | H14: 0.03997377418 | I14: 0.06000892466 | J14: 0.03852881823 | K14: 2010 | L14: 0.1728314751 | M14: 0.1333531972 | N14: 0.1707988033 | O14: 0.131909494
A15: 2011 | B15: 0.01974433147 | C15: 0.01208744619 | D15: 0.01871602409 | E15: 0.01146621228 | F15: 2011 | G15: 0.06062296936 | H15: 0.03921651931 | I15: 0.05827613648 | J15: 0.03762841533 | K15: 2011 | L15: 0.1711045432 | M15: 0.1320800118 | N15: 0.1682573745 | O15: 0.1300779862
A16: 2012 | B16: 0.01934204895 | C16: 0.0119361491 | D16: 0.01827703951 | E16: 0.01130073806 | F16: 2012 | G16: 0.0591591316 | H16: 0.03849522045 | I16: 0.05658564783 | J16: 0.03674847834 | K16: 2012 | L16: 0.1694176976 | M16: 0.1308490389 | N16: 0.1657205947 | O16: 0.1282477256
A17: 2013 | B17: 0.01898448482 | C17: 0.01180177124 | D17: 0.01786384339 | E17: 0.01114781435 | F17: 2013 | G17: 0.05776073675 | H17: 0.03780765162 | I17: 0.05492877655 | J17: 0.03588615939 | K17: 2013 | L17: 0.1677695428 | M17: 0.1296608367 | N17: 0.163188286 | O17: 0.1264191955
A18: 2014 | B18: 0.0186642599 | C18: 0.01168106912 | D18: 0.0174683698 | E18: 0.01100374671 | F18: 2014 | G18: 0.05641954902 | H18: 0.0371492806 | I18: 0.05329592904 | J18: 0.0350371891 | K18: 2014 | L18: 0.1661556846 | M18: 0.1285121065 | N18: 0.1606585248 | O18: 0.124589294
A19: 2015 | B19: 0.01837164129 | C19: 0.01157105424 | D19: 0.01708172721 | E19: 0.01086546445 | F19: 2015 | G19: 0.05512241387 | H19: 0.03651502472 | I19: 0.05167403895 | J19: 0.03419666697 | K19: 2015 | L19: 0.1645699054 | M19: 0.1273964181 | N19: 0.1581291461 | O19: 0.1227547794
A20: 2016 | B20: 0.01809888348 | C20: 0.01146639003 | D20: 0.01670000288 | E20: 0.01072834628 | F20: 2016 | G20: 0.05385845215 | H20: 0.03589694501 | I20: 0.05005658194 | J20: 0.03335887593 | K20: 2016 | L20: 0.1630031971 | M20: 0.1263098584 | N20: 0.155597741 | O20: 0.1209176714
A21: 2017 | B21: 0.01783707113 | C21: 0.01136544735 | D21: 0 | E21: 0 | F21: 2017 | G21: 0.05261536711 | H21: 0.03528911384 | I21: 0 | J21: 0 | K21: 2017 | L21: 0.1614492273 | M21: 0.1252455586 | N21: 0 | O21: 0
A22: 2018 | B22: 0.01757847542 | C22: 0.01126470603 | D22: 0 | E22: 0 | F22: 2018 | G22: 0.0513807141 | H22: 0.03468682239 | I22: 0 | J22: 0 | K22: 2018 | L22: 0.1598997533 | M22: 0.1241907252 | N22: 0 | O22: 0

Sheet Exposures
A1: Comparing Exposure between OAS and HMD
A2: Age 70 | B2: OAS M | C2: OAS F | D2: HMD M | E2: HMD F | F2: Ratio M | G2: Ratio F | H2: Age 75 | I2: OAS M | J2: OAS F | K2: HMD M | L2: HMD F | M2: Ratio M | N2: Ratio F | O2: Age 80 | P2: OAS M | Q2: OAS F | R2: HMD M | S2: HMD F | T2: Ratio M | U2: Ratio F | V2: Age 85 | W2: OAS M | X2: OAS F | Y2: HMD M | Z2: HMD F | AA2: Ratio M | AB2: Ratio F | AC2: Age 90 | AD2: OAS M | AE2: OAS F | AF2: HMD M | AG2: HMD F | AH2: Ratio M | AI2: Ratio F | AJ2: Age 95 | AK2: OAS M | AL2: OAS F | AM2: HMD M | AN2: HMD F | AO2: Ratio M | AP2: Ratio F
A3: 1999 | B3: 94752.5 | C3: 108072 | D3: 98848.18 | E3: 113000.14 | F3: 0.9585659544 | G3: 0.9563881956 | H3: 1999 | I3: 72661.5 | J3: 97829 | K3: 75009.76 | L3: 100623.49 | M3: 0.9686939406 | N3: 0.9722282541 | O3: 1999 | P3: 42379.5 | Q3: 67510.5 | R3: 42750.44 | S3: 68300.3 | T3: 0.9913231302 | U3: 0.9884363612 | V3: 1999 | W3: 24039 | X3: 46658.5 | Y3: 23710.98 | Z3: 46325.98 | AA3: 1.013834097 | AB3: 1.00717783 | AC3: 1999 | AD3: 8317 | AE3: 21341 | AF3: 8119.19 | AG3: 20952.72 | AH3: 1.024363268 | AI3: 1.018531246 | AJ3: 1999 | AK3: 1836.5 | AL3: 6418.5 | AM3: 1803.3 | AN3: 6284.64 | AO3: 1.018410692 | AP3: 1.021299549
A4: 2000 | B4: 97700.5 | C4: 109931.5 | D4: 102283.97 | E4: 115581.11 | F4: 0.9551887749 | G4: 0.9511199538 | H4: 2000 | I4: 74735.5 | J4: 99042 | K4: 77410.22 | L4: 102100.67 | M4: 0.9654474564 | N4: 0.970042606 | O4: 2000 | P4: 46975.5 | Q4: 74009 | R4: 47035.9 | S4: 74694.51 | T4: 0.9987158745 | U4: 0.9908224848 | V4: 2000 | W4: 24803 | X4: 47958 | Y4: 24357.98 | Z4: 47280.29 | AA4: 1.018269988 | AB4: 1.01433388 | AC4: 2000 | AD4: 8616.5 | AE4: 22156 | AF4: 8478.7 | AG4: 21810.15 | AH4: 1.016252492 | AI4: 1.015857296 | AJ4: 2000 | AK4: 1832 | AL4: 6615.5 | AM4: 1784.74 | AN4: 6476.83 | AO4: 1.026480048 | AP4: 1.021410165
A5: 2001 | B5: 100192.5 | C5: 111844 | D5: 103624.67 | E5: 115769.56 | F5: 0.966878833 | G5: 0.9660916047 | H5: 2001 | I5: 76456.5 | J5: 99091.5 | K5: 79165.23 | L5: 102297.37 | M5: 0.9657838422 | N5: 0.9686612667 | O5: 2001 | P5: 51816 | Q5: 80852 | R5: 51427.15 | S5: 80832.54 | T5: 1.007561181 | U5: 1.000240745 | V5: 2001 | W5: 24707 | X5: 47823 | Y5: 24263.97 | Z5: 47130.88 | AA5: 1.01825876 | AB5: 1.014685064 | AC5: 2001 | AD5: 8957 | AE5: 22966 | AF5: 8878.88 | AG5: 22663.9 | AH5: 1.008798407 | AI5: 1.013329568 | AJ5: 2001 | AK5: 1901 | AL5: 6981.5 | AM5: 1884.33 | AN5: 6849.52 | AO5: 1.008846646 | AP5: 1.019268503
A6: 2002 | B6: 100270 | C6: 111397 | D6: 104264.43 | E6: 115503.38 | F6: 0.9616894275 | G6: 0.9644479668 | H6: 2002 | I6: 78007 | J6: 98859.5 | K6: 80203.54 | L6: 101525.35 | M6: 0.9726129296 | N6: 0.973742026 | O6: 2002 | P6: 53079 | Q6: 82150 | R6: 53115.65 | S6: 82815.21 | T6: 0.9993099962 | U6: 0.9919675383 | V6: 2002 | W6: 24848.5 | X6: 47742.5 | Y6: 24470.8 | Z6: 47458.69 | AA6: 1.015434722 | AB6: 1.005980148 | AC6: 2002 | AD6: 9569.5 | AE6: 24125 | AF6: 9449 | AG6: 23843.3 | AH6: 1.012752672 | AI6: 1.01181464 | AJ6: 2002 | AK6: 2053 | AL6: 7328 | AM6: 2041.4 | AN6: 7210.28 | AO6: 1.005682375 | AP6: 1.016326689
A7: 2003 | B7: 99664.5 | C7: 109641 | D7: 103959.38 | E7: 114933.27 | F7: 0.958686941 | G7: 0.9539535419 | H7: 2003 | I7: 79991 | J7: 99282 | K7: 82465.3 | L7: 102366.14 | M7: 0.9699958649 | N7: 0.9698714829 | O7: 2003 | P7: 54056 | Q7: 82923.5 | R7: 53892.5 | S7: 82961.51 | T7: 1.003033817 | U7: 0.9995418357 | V7: 2003 | W7: 25691.5 | X7: 48900 | Y7: 25232.39 | Z7: 48264.99 | AA7: 1.018195264 | AB7: 1.013156742 | AC7: 2003 | AD7: 10280 | AE7: 25603.5 | AF7: 10062.3 | AG7: 25332.87 | AH7: 1.021635213 | AI7: 1.010682959 | AJ7: 2003 | AK7: 2214 | AL7: 7673.5 | AM7: 2162.87 | AN7: 7580.51 | AO7: 1.023639886 | AP7: 1.012266985
A8: 2004 | B8: 98787.5 | C8: 108851.5 | D8: 101680.61 | E8: 112779.79 | F8: 0.9715470826 | G8: 0.9651684934 | H8: 2004 | I8: 81269 | J8: 99626 | K8: 84046.96 | L8: 102894.66 | M8: 0.9669475255 | N8: 0.9682329481 | O8: 2004 | P8: 55258.5 | Q8: 83628.5 | R8: 55062.59 | S8: 83430.77 | T8: 1.003557951 | U8: 1.002369989 | V8: 2004 | W8: 26515 | X8: 50188 | Y8: 26586.48 | Z8: 50509.29 | AA8: 0.9973114154 | AB8: 0.993638992 | AC8: 2004 | AD8: 10843.5 | AE8: 26942.5 | AF8: 10633 | AG8: 26611.67 | AH8: 1.019796859 | AI8: 1.012431764 | AJ8: 2004 | AK8: 2323.5 | AL8: 7995 | AM8: 2246.88 | AN8: 7872.96 | AO8: 1.03410062 | AP8: 1.015501158
A9: 2005 | B9: 99932.5 | C9: 110469 | D9: 102941.7 | E9: 114772 | F9: 0.9707679201 | G9: 0.9625082773 | H9: 2005 | I9: 84280.5 | J9: 101638 | K9: 87032.68 | L9: 105307.71 | M9: 0.9683776255 | N9: 0.965152504 | O9: 2005 | P9: 57425.5 | Q9: 84832 | R9: 57427.06 | S9: 85190.43 | T9: 0.9999728351 | U9: 0.9957926025 | V9: 2005 | W9: 29675.5 | X9: 55522 | Y9: 29570.94 | Z9: 55743.34 | AA9: 1.003535904 | AB9: 0.9960293014 | AC9: 2005 | AD9: 11340 | AE9: 27762.5 | AF9: 11112.71 | AG9: 27189.37 | AH9: 1.020453157 | AI9: 1.021079194 | AJ9: 2005 | AK9: 2427.5 | AL9: 8453.5 | AM9: 2366.74 | AN9: 8263.78 | AO9: 1.025672444 | AP9: 1.022958017
A10: 2006 | B10: 101720 | C10: 111780.5 | D10: 104344.19 | E10: 116343.92 | F10: 0.9748506361 | G10: 0.9607764634 | H10: 2006 | I10: 86883 | J10: 103418.5 | K10: 88423.07 | L10: 105556.22 | M10: 0.982582939 | N10: 0.9797480433 | O10: 2006 | P10: 59275 | Q10: 85108 | R10: 59418.84 | S10: 85712.83 | T10: 0.997579219 | U10: 0.9929435302 | V10: 2006 | W10: 33272.5 | X10: 60985 | Y10: 32625.97 | Z10: 60503.1 | AA10: 1.019816422 | AB10: 1.007964881 | AC10: 2006 | AD10: 11542.5 | AE10: 27864 | AF10: 11270.02 | AG10: 27367.8 | AH10: 1.024177419 | AI10: 1.018130796 | AJ10: 2006 | AK10: 2526 | AL10: 8876 | AM10: 2478.42 | AN10: 8733.06 | AO10: 1.019197715 | AP10: 1.016367688
A11: 2007 | B11: 102780.5 | C11: 112799.5 | D11: 105180.74 | E11: 116839.41 | F11: 0.9771798525 | G11: 0.9654233961 | H11: 2007 | I11: 87347.5 | J11: 103148 | K11: 89313.09 | L11: 105596.73 | M11: 0.9779921398 | N11: 0.9768105509 | O11: 2007 | P11: 60802 | Q11: 85299 | R11: 61289.82 | S11: 85933.6 | T11: 0.9920407663 | U11: 0.9926152285 | V11: 2007 | W11: 34493.5 | X11: 62176 | Y11: 34199.19 | Z11: 62266.03 | AA11: 1.008605759 | AB11: 0.9985541073 | AC11: 2007 | AD11: 11782 | AE11: 28235 | AF11: 11574.72 | AG11: 28027.94 | AH11: 1.017907993 | AI11: 1.007387628 | AJ11: 2007 | AK11: 2719.5 | AL11: 9470 | AM11: 2673.17 | AN11: 9335.53 | AO11: 1.017331483 | AP11: 1.01440411
A12: 2008 | B12: 105581.5 | C12: 115702 | D12: 108554.67 | E12: 120056.25 | F12: 0.9726113119 | G12: 0.9637315842 | H12: 2008 | I12: 87195.5 | J12: 101723 | K12: 89551.49 | L12: 105458.43 | M12: 0.973691225 | N12: 0.9645791237 | O12: 2008 | P12: 62801.5 | Q12: 85896.5 | R12: 64124.28 | S12: 87812.74 | T12: 0.9793716202 | U12: 0.9781781095 | V12: 2008 | W12: 35331.5 | X12: 63105 | Y12: 35190.15 | Z12: 62893.09 | AA12: 1.004016749 | AB12: 1.003369369 | AC12: 2008 | AD12: 12250.5 | AE12: 29336.5 | AF12: 11976.15 | AG12: 28772.73 | AH12: 1.02290803 | AI12: 1.0195939 | AJ12: 2008 | AK12: 3037 | AL12: 10163.5 | AM12: 2912.63 | AN12: 10001.03 | AO12: 1.04270024 | AP12: 1.016245327
A13: 2009 | B13: 109277 | C13: 119307 | D13: 112981.69 | E13: 124741 | F13: 0.9672098196 | G13: 0.956437739 | H13: 2009 | I13: 86635.5 | J13: 100992.5 | K13: 88244.12 | L13: 103783.48 | M13: 0.9817707967 | N13: 0.9731076661 | O13: 2009 | P13: 64215.5 | Q13: 86188.5 | R13: 65865.26 | S13: 88729.08 | T13: 0.9749525015 | U13: 0.9713669972 | V13: 2009 | W13: 36467 | X13: 63990 | Y13: 36300.92 | Z13: 63598.95 | AA13: 1.004575091 | AB13: 1.006148686 | AC13: 2009 | AD13: 12754.5 | AE13: 30417 | AF13: 12789.4 | AG13: 30551.95 | AH13: 0.9972711777 | AI13: 0.9955829333 | AJ13: 2009 | AK13: 3269.5 | AL13: 10778.5 | AM13: 3147.66 | AN13: 10564.07 | AO13: 1.03870812 | AP13: 1.020298048
A14: 2010 | B14: 112817.5 | C14: 123152.5 | D14: 115129.44 | E14: 127229.51 | F14: 0.9799187766 | G14: 0.9679554688 | H14: 2010 | I14: 87954 | J14: 102437.5 | K14: 90245.81 | L14: 105969.19 | M14: 0.9746048044 | N14: 0.9666724828 | O14: 2010 | P14: 67048.5 | Q14: 88136.5 | R14: 68722.96 | S14: 91343.47 | T14: 0.9756346351 | U14: 0.9648910864 | V14: 2010 | W14: 38239 | X14: 65142.5 | Y14: 38282.19 | Z14: 65266.57 | AA14: 0.9988717991 | AB14: 0.9980990268 | AC14: 2010 | AD14: 14630 | AE14: 33870 | AF14: 14594.11 | AG14: 34032.84 | AH14: 1.002459211 | AI14: 0.9952152098 | AJ14: 2010 | AK14: 3400.5 | AL14: 11372 | AM14: 3318.54 | AN14: 10997.04 | AO14: 1.024697608 | AP14: 1.034096448
A15: 2011 | B15: 117567.5 | C15: 127809 | D15: 123280.39 | E15: 135856.72 | F15: 0.9536593776 | G15: 0.9407631805 | H15: 2011 | I15: 89923 | J15: 103678 | K15: 92360.71 | L15: 107984.11 | M15: 0.9736066342 | N15: 0.960122744 | O15: 2011 | P15: 69573.5 | Q15: 89956 | R15: 70223.87 | S15: 91980.96 | T15: 0.9907386192 | U15: 0.9779850091 | V15: 2011 | W15: 39820 | X15: 65668 | Y15: 40065.4 | Z15: 66120.79 | AA15: 0.9938750144 | AB15: 0.9931520782 | AC15: 2011 | AD15: 16736.5 | AE15: 37359.5 | AF15: 16264.76 | AG15: 36906.29 | AH15: 1.029003809 | AI15: 1.012280021 | AJ15: 2011 | AK15: 3473.5 | AL15: 11517 | AM15: 3354.19 | AN15: 11247.13 | AO15: 1.035570436 | AP15: 1.023994566
A16: 2012 | B16: 124505 | C16: 134212 | D16: 128396.89 | E16: 140373.41 | F16: 0.969688596 | G16: 0.9561070006 | H16: 2012 | I16: 91194 | J16: 104924.5 | K16: 93748.42 | L16: 109126.01 | M16: 0.9727523941 | N16: 0.9614985465 | O16: 2012 | P16: 70294 | Q16: 89909 | R16: 71382.68 | S16: 92147.6 | T16: 0.9847486813 | U16: 0.9757063667 | V16: 2012 | W16: 41253 | X16: 66120.5 | Y16: 41650.06 | Z16: 66763.87 | AA16: 0.9904667604 | AB16: 0.9903635005 | AC16: 2012 | AD16: 17488.5 | AE16: 38398 | AF16: 17418.77 | AG16: 38555.03 | AH16: 1.004003153 | AI16: 0.9959271203 | AJ16: 2012 | AK16: 3585 | AL16: 11641 | AM16: 3535.55 | AN16: 11640.77 | AO16: 1.013986508 | AP16: 1.000019758
A17: 2013 | B17: 132845.5 | C17: 142367 | D17: 137383.31 | E17: 148948.32 | F17: 0.9669697142 | G17: 0.9558147416 | H17: 2013 | I17: 94009 | J17: 107879.5 | K17: 97098.28 | L17: 112519.57 | M17: 0.9681839884 | N17: 0.9587621069 | O17: 2013 | P17: 70650.5 | Q17: 88838 | R17: 72320.68 | S17: 92292.28 | T17: 0.976905914 | U17: 0.9625723842 | V17: 2013 | W17: 43011.5 | X17: 66834 | Y17: 43967.35 | Z17: 68769.71 | AA17: 0.9782600043 | AB17: 0.9718522879 | AC17: 2013 | AD17: 18051 | AE17: 39327.5 | AF17: 18169.9 | AG17: 39510.64 | AH17: 0.9934562105 | AI17: 0.9953647929 | AJ17: 2013 | AK17: 3786.5 | AL17: 12288.5 | AM17: 3730.65 | AN17: 12078.4 | AO17: 1.014970582 | AP17: 1.017394688
A18: 2014 | B18: 137848 | C18: 147727.5 | D18: 142377.44 | E18: 153412.81 | F18: 0.9681870948 | G18: 0.9629410999 | H18: 2014 | I18: 97557 | J18: 111324 | K18: 101246.46 | L18: 117111.04 | M18: 0.9635596148 | N18: 0.9505850174 | O18: 2014 | P18: 70609.5 | Q18: 88521.5 | R18: 72006.19 | S18: 91167.53 | T18: 0.9806031954 | U18: 0.9709761798 | V18: 2014 | W18: 44338 | X18: 67286.5 | Y18: 45674.31 | Z18: 69745.74 | AA18: 0.9707426341 | AB18: 0.9647399253 | AC18: 2014 | AD18: 18888.5 | AE18: 40185.5 | AF18: 19053.15 | AG18: 40125.3 | AH18: 0.9913583843 | AI18: 1.0015003 | AJ18: 2014 | AK18: 4006.5 | AL18: 12934 | AM18: 4087.4 | AN18: 13045.79 | AO18: 0.9802074668 | AP18: 0.9914309521
A19: 2015 | B19: 140333.5 | C19: 150534 | D19: 148476.2 | E19: 159268.59 | F19: 0.9451582139 | G19: 0.9451581131 | H19: 2015 | I19: 100867.5 | J19: 115048 | K19: 103243.75 | L19: 119430.68 | M19: 0.9769840789 | N19: 0.9633035666 | O19: 2015 | P19: 71922 | Q19: 90074 | R19: 74131.09 | S19: 93284.68 | T19: 0.9702002223 | U19: 0.9655819155 | V19: 2015 | W19: 46625 | X19: 68995.5 | Y19: 48079.65 | Z19: 71940.25 | AA19: 0.9697449961 | AB19: 0.9590667255 | AC19: 2015 | AD19: 19964 | AE19: 41112.5 | AF19: 20257.39 | AG19: 41424.04 | AH19: 0.9855168904 | AI19: 0.9924792464 | AJ19: 2015 | AK19: 4651 | AL19: 14409.5 | AM19: 4737.27 | AN19: 14642.18 | AO19: 0.9817890895 | AP19: 0.9841089237
A20: 2016 | B20: 152036 | C20: 163390 | D20: 159007.96 | E20: 170260.12 | F20: 0.9561533901 | G20: 0.9596492708 | H20: 2016 | I20: 105171.5 | J20: 119208.5 | K20: 110493.37 | L20: 127345.93 | M20: 0.9518353907 | N20: 0.9360998031 | O20: 2016 | P20: 73925.5 | Q20: 91219.5 | R20: 76162.9 | S20: 95273.41 | T20: 0.9706234925 | U20: 0.9574497229 | V20: 2016 | W20: 48804 | X20: 70502 | Y20: 49491.96 | Z20: 72670.79 | AA20: 0.9860995604 | AB20: 0.9701559595 | AC20: 2016 | AD20: 20866 | AE20: 41495.5 | AF20: 21522.91 | AG20: 42308.18 | AH20: 0.9694785696 | AI20: 0.9807914214 | AJ20: 2016 | AK20: 5415.5 | AL20: 15987 | AM20: 5434.17 | AN20: 16127.11 | AO20: 0.9965643327 | AP20: 0.9913121446

Sheet Raw mx
A1: Average central death rates by age adjusting over a 5-year period centred on the indicated age, using OAS exposure in 2016
A2: Age 70 | B2: OAS M | C2: OAS F | D2: HMD M | E2: HMD F | F2: Age 80 | G2: OAS M | H2: OAS F | I2: HMD M | J2: HMD F | K2: Age 90 | L2: OAS M | M2: OAS F | N2: HMD M | O2: HMD F
A3: 1999 | B3: 0.02965549616 | C3: 0.01594289678 | D3: 0.02824712937 | E3: 0.01519006439 | F3: 1999 | G3: 0.07880093063 | H3: 0.04720860513 | I3: 0.07791083953 | J3: 0.04646529153 | K3: 1999 | L3: 0.2018887501 | M3: 0.1471291744 | N3: 0.2082098995 | O3: 0.1491631898
A4: 2000 | B4: 0.02778549152 | C4: 0.01567110776 | D4: 0.02656603999 | E4: 0.01497710741 | F4: 2000 | G4: 0.0760192986 | H4: 0.04603593518 | I4: 0.07485326075 | J4: 0.04530977588 | K4: 2000 | L4: 0.1940980212 | M4: 0.1439301657 | N4: 0.1961042704 | O4: 0.1446005949
A5: 2001 | B5: 0.02714767415 | C5: 0.01585295348 | D5: 0.02571930545 | E5: 0.01515848456 | F5: 2001 | G5: 0.07367183862 | H5: 0.04485774001 | I5: 0.0719538167 | J5: 0.04386130889 | K5: 2001 | L5: 0.190946393 | M5: 0.1431779093 | N5: 0.1929763387 | O5: 0.1436208363
A6: 2002 | B6: 0.02661320357 | C6: 0.01545944711 | D6: 0.02544955732 | E6: 0.01485441795 | F6: 2002 | G6: 0.07153563474 | H6: 0.04498550363 | I6: 0.06993610121 | J6: 0.04408035952 | K6: 2002 | L6: 0.196359733 | M6: 0.1413714642 | N6: 0.1976589001 | O6: 0.142205458
A7: 2003 | B7: 0.02558429746 | C7: 0.01504160027 | D7: 0.02428814497 | E7: 0.01446181179 | F7: 2003 | G7: 0.07049212531 | H7: 0.04372879852 | I7: 0.06866366875 | J7: 0.042965268 | K7: 2003 | L7: 0.1923060821 | M7: 0.1414635454 | N7: 0.1944616574 | O7: 0.1422386576
A8: 2004 | B8: 0.02442540625 | C8: 0.01468430473 | D8: 0.02337536299 | E8: 0.01410109526 | F8: 2004 | G8: 0.06775805712 | H8: 0.04324641434 | I8: 0.0660474574 | J8: 0.04232251788 | K8: 2004 | L8: 0.1837231221 | M8: 0.1391877766 | N8: 0.1850719082 | O8: 0.1399130397
A9: 2005 | B9: 0.02377253118 | C9: 0.01455379834 | D9: 0.02288762892 | E9: 0.01392023964 | F9: 2005 | G9: 0.06601094198 | H9: 0.04226678384 | I9: 0.06456625582 | J9: 0.04140325596 | K9: 2005 | L9: 0.1834187514 | M9: 0.138889327 | N9: 0.1848497597 | O9: 0.1400384899
A10: 2006 | B10: 0.0227364547 | C10: 0.0140934272 | D10: 0.02179235322 | E10: 0.01344263626 | F10: 2006 | G10: 0.06369330356 | H10: 0.04061449984 | I10: 0.06176224528 | J10: 0.03952881921 | K10: 2006 | L10: 0.1803603274 | M10: 0.1308043298 | N10: 0.1820033074 | O10: 0.1312615161
A11: 2007 | B11: 0.02275058458 | C11: 0.014192578 | D11: 0.02189641407 | E11: 0.01366200402 | F11: 2007 | G11: 0.06275148421 | H11: 0.04013472464 | I11: 0.06088375916 | J11: 0.03903419607 | K11: 2007 | L11: 0.1795992502 | M11: 0.133214531 | N11: 0.1809124668 | O11: 0.1337403854
A12: 2008 | B12: 0.02199992023 | C12: 0.01393146129 | D12: 0.02115576786 | E12: 0.01337603827 | F12: 2008 | G12: 0.06147034801 | H12: 0.03973243049 | I12: 0.05932700384 | J12: 0.03850809236 | K12: 2008 | L12: 0.1811459206 | M12: 0.1310473279 | N12: 0.1811857637 | O12: 0.1306102644
A13: 2009 | B13: 0.02125620696 | C13: 0.01318778054 | D13: 0.02029064562 | E13: 0.01261415375 | F13: 2009 | G13: 0.0593389667 | H13: 0.03880754906 | I13: 0.057296099 | J13: 0.03744359059 | K13: 2009 | L13: 0.1734768807 | M13: 0.1278795761 | N13: 0.1738499995 | O13: 0.1274435369
A14: 2010 | B14: 0.02051305146 | C14: 0.01318336245 | D14: 0.01948355968 | E14: 0.01255457156 | F14: 2010 | G14: 0.05776492207 | H14: 0.03773607265 | I14: 0.05543904082 | J14: 0.036241927 | K14: 2010 | L14: 0.1683210557 | M14: 0.1253497764 | N14: 0.1680208496 | O14: 0.1244873845
A15: 2011 | B15: 0.02003319346 | C15: 0.01296800166 | D15: 0.01919053017 | E15: 0.01231514163 | F15: 2011 | G15: 0.05564560894 | H15: 0.03764872692 | I15: 0.05354496905 | J15: 0.03604471036 | K15: 2011 | L15: 0.1655557956 | M15: 0.1258510115 | N15: 0.165049063 | O15: 0.12447873
A16: 2012 | B16: 0.01988227248 | C16: 0.01264832725 | D16: 0.0189164992 | E16: 0.01203721494 | F16: 2012 | G16: 0.05515313234 | H16: 0.0363695991 | I16: 0.05300202986 | J16: 0.03474562175 | K16: 2012 | L16: 0.1658011159 | M16: 0.1228066234 | N16: 0.1637788207 | O16: 0.1214323086
A17: 2013 | B17: 0.01949495196 | C17: 0.01262521757 | D17: 0.01853212471 | E17: 0.01197803299 | F17: 2013 | G17: 0.05339936472 | H17: 0.03631871009 | I17: 0.0512311033 | J17: 0.03477811071 | K17: 2013 | L17: 0.1613792972 | M17: 0.120981686 | N17: 0.1591173774 | O17: 0.1193560936
A18: 2014 | B18: 0.01939938353 | C18: 0.01241719207 | D18: 0.01841390345 | E18: 0.01181632587 | F18: 2014 | G18: 0.05343396823 | H18: 0.03530498922 | I18: 0.05133493457 | J18: 0.03364532304 | K18: 2014 | L18: 0.1618938227 | M18: 0.1222391764 | N18: 0.1575559276 | O18: 0.1200096731
A19: 2015 | B19: 0.01876627327 | C19: 0.01266313352 | D19: 0.01770210571 | E19: 0.01198582386 | F19: 2015 | G19: 0.05178983105 | H19: 0.03555034034 | I19: 0.0495114846 | J19: 0.03375028659 | K19: 2015 | L19: 0.1629423463 | M19: 0.1189023152 | N19: 0.1573135702 | O19: 0.1160713603
A20: 2016 | B20: 0.01868006551 | C20: 0.01223621114 | D20: 0.01761204669 | E20: 0.01164715986 | F20: 2016 | G20: 0.05007348993 | H20: 0.03464792653 | I20: 0.04786169557 | J20: 0.03301940902 | K20: 2016 | L20: 0.1569072378 | M20: 0.1156771675 | N20: 0.1505140378 | O20: 0.1119209363
A21: 2017 | B21: 0.01874836778 | C21: 0.01213972178 | D21: 0 | E21: 0 | F21: 2017 | G21: 0.05073551357 | H21: 0.03422879344 | I21: 0 | J21: 0 | K21: 2017 | L21: 0.1610645091 | M21: 0.119324671 | N21: 0 | O21: 0
A22: 2018 | B22: 0.01835056137 | C22: 0.01197737787 | D22: 0 | E22: 0 | F22: 2018 | G22: 0.0499486612 | H22: 0.03460541164 | I22: 0 | J22: 0 | K22: 2018 | L22: 0.1583257269 | M22: 0.1208298887 | N22: 0 | O22: 0

Sheet DocOrg
A1: Tables, charts, shapes in sequence as they appear in the document | H1: MI2017 update.docx
A2: 1 | B2: 2 | C2: 3 | D2: 4 | E2: 5 | F2: 6 | G2: 7 | H2: 8 | I2: 9 | J2: 10 | K2: DocVariables
A3: Index | B3: Number | C3: Type | D3: Worksheet | E3: Rng/Cht | F3: Bookmark | G3: Left | H3: Width | I3: Items | J3: workbook | K3: Index | L3: Name | M3: Value
A4: 1 | B4: 1 | C4: chart | D4: Male | E4: chSome1170 | F4: ch1M70 | G4: 0 | H4: 15 | I4: 1
A5: 2 | B5: 2 | C5: chart | D5: Male | E5: chSome1180 | F5: ch1M80 | G5: 0 | H5: 15 | I5: 1
A6: 3 | B6: 3 | C6: chart | D6: Male | E6: chSome1160 | F6: ch1M60 | G6: 0 | H6: 15 | I6: 1
A7: 4 | B7: 4 | C7: chart | D7: Female | E7: chSome1260 | F7: ch1F60 | G7: 0 | H7: 15 | I7: 1
A8: 5 | B8: 5 | C8: chart | D8: Female | E8: chSome1270 | F8: ch1F70 | G8: 0 | H8: 15 | I8: 1
A9: 6 | B9: 6 | C9: chart | D9: Female | E9: chSome1280 | F9: ch1F80 | G9: 0 | H9: 15 | I9: 1
A10: 7 | B10: 1 | C10: table | D10: Annuities | E10: AnnSm | F10: LifeAnn | G10: Square
A11: 8 | B11: 2 | C11: table | D11: Pval | E11: PortSm | F11: Portf | G11: Square
A12: 9 | B12: 7 | C12: chart | D12: Female | E12: chSome2280 | F12: Ult2033 | G12: 0 | H12: 15 | I12: 1
A13: 10 | B13: 8 | C13: chart | D13: AgeAdjd | E13: chAA1 | F13: RawAA | G13: 0 | H13: 15 | I13: 1
A14: 11 | B14: 9 | C14: chart | D14: AgeAdjd | E14: chAA3 | F14: GradAA | G14: 0 | H14: 15 | I14: 1
A15: 12 | B15: 10 | C15: chart | D15: AgeAdjd | E15: chAA4 | F15: ImpGradAA | G15: 0 | H15: 15 | I15: 1
A16: 13 | B16: 11 | C16: chart | D16: Grad mx | E16: chGmx70 | F16: chGmx70 | G16: 0 | H16: 15 | I16: 1
A17: 14 | B17: 12 | C17: chart | D17: Grad mx | E17: chGmx80 | F17: chGmx80 | G17: 0 | H17: 15 | I17: 1
A18: 15 | B18: 13 | C18: chart | D18: Grad mx | E18: chGmx90 | F18: chGmx90 | G18: 0 | H18: 15 | I18: 1
